Body Name,Document Number,Service,Type of Expenditure,Invoice Date,Supplier Name,Cost to the Council (Amount Exc VAT),Month
EREWASH BOROUGH COUNCIL,227403,Homelessness,Temporary Accommodation,05/05/21,1ST CHOICE HOUSING SOLUTIONS,250.00,May-21
EREWASH BOROUGH COUNCIL,226688,Balance Sheet,PCC - Election,18/05/21,1ST DRAYCOTT  & WILNE SCOUT GROUP,500.00,May-21
EREWASH BOROUGH COUNCIL,227248,Balance Sheet,COVID 19 - Additional Restrictions Grant,25/05/21,A & K ENTERTAINMENTS,"2,500.00",May-21
EREWASH BOROUGH COUNCIL,226926,Balance Sheet,COVID 19 - Additional Restrictions Grant,20/05/21,REDACTED PERSONAL DATA,500.00,May-21
EREWASH BOROUGH COUNCIL,227224,Balance Sheet,COVID 19 - Additional Restrictions Grant,25/05/21,A M STAIRLIFTS LIMITED,"8,000.00",May-21
EREWASH BOROUGH COUNCIL,227254,Balance Sheet,COVID 19 - Additional Restrictions Grant,25/05/21,A ROBINSON AND SONS,"2,667.00",May-21
EREWASH BOROUGH COUNCIL,227299,Balance Sheet,COVID 19 - Additional Restrictions Grant,25/05/21,A.A.M INSTALLATIONS LTD,"2,500.00",May-21
EREWASH BOROUGH COUNCIL,226930,Balance Sheet,COVID 19 - Additional Restrictions Grant,20/05/21,A52 CARS LIMITED,500.00,May-21
EREWASH BOROUGH COUNCIL,226924,Balance Sheet,COVID 19 - Additional Restrictions Grant,20/05/21,REDACTED PERSONAL DATA,500.00,May-21
EREWASH BOROUGH COUNCIL,226933,Balance Sheet,COVID 19 - Additional Restrictions Grant,20/05/21,REDACTED PERSONAL DATA,500.00,May-21
EREWASH BOROUGH COUNCIL,227270,Balance Sheet,COVID 19 - Additional Restrictions Grant,25/05/21,ADAM FRETWELL PT,"2,500.00",May-21
EREWASH BOROUGH COUNCIL,226906,Balance Sheet,COVID 19 - Additional Restrictions Grant,20/05/21,REDACTED PERSONAL DATA,500.00,May-21
EREWASH BOROUGH COUNCIL,227311,Balance Sheet,COVID 19 - Additional Restrictions Grant,25/05/21,REDACTED PERSONAL DATA,"2,500.00",May-21
EREWASH BOROUGH COUNCIL,227210,Balance Sheet,COVID 19 - Additional Restrictions Grant,25/05/21,ADVANCED AUTO RECOVERY,"18,000.00",May-21
EREWASH BOROUGH COUNCIL,227068,Balance Sheet,ICT Works,30/04/21,ADVANCED BUSINESS SOFTWARE & SOLUTIONS LIMITED,995.03,May-21
EREWASH BOROUGH COUNCIL,227067,Balance Sheet,ICT Works,30/04/21,ADVANCED BUSINESS SOFTWARE & SOLUTIONS LIMITED,"4,477.62",May-21
EREWASH BOROUGH COUNCIL,226925,Balance Sheet,COVID 19 - Additional Restrictions Grant,20/05/21,REDACTED PERSONAL DATA,500.00,May-21
EREWASH BOROUGH COUNCIL,226956,Balance Sheet,COVID 19 - Additional Restrictions Grant,20/05/21,AIRVEND UL LTD,"2,667.00",May-21
EREWASH BOROUGH COUNCIL,226795,Balance Sheet,COVID 19 - Additional Restrictions Grant,20/05/21,REDACTED PERSONAL DATA,"1,000.00",May-21
EREWASH BOROUGH COUNCIL,226932,Balance Sheet,COVID 19 - Additional Restrictions Grant,20/05/21,REDACTED PERSONAL DATA,500.00,May-21
EREWASH BOROUGH COUNCIL,227219,Balance Sheet,COVID 19 - Additional Restrictions Grant,25/05/21,ALAN LITMAN LTD,"2,667.00",May-21
EREWASH BOROUGH COUNCIL,227228,Balance Sheet,COVID 19 - Additional Restrictions Grant,25/05/21,ALAN MCGOWAN ARCHITECTS LTD,"8,000.00",May-21
EREWASH BOROUGH COUNCIL,226678,Balance Sheet,PCC - Election,18/05/21,ALL SAINTS CHURCH HALL SAWLEY,270.00,May-21
EREWASH BOROUGH COUNCIL,227342,Balance Sheet,COVID 19 - Additional Restrictions Grant,25/05/21,ALL SEASONS CLEAN LTD,"1,500.00",May-21
EREWASH BOROUGH COUNCIL,226598,Treasury Management and Bank Charges,Allpay/Post Office Charges,30/04/21,ALLPAY LIMITED,"1,277.64",May-21
EREWASH BOROUGH COUNCIL,226540,Household/Residual Waste Collection,Repairs and Maintenance,05/05/21,ALLSCREENS NATIONWIDE LTD,250.00,May-21
EREWASH BOROUGH COUNCIL,227165,Civic Accommodation - Long Eaton,Reactive Maintenance,12/05/21,ALPHA DRAIN SERVICES,360.00,May-21
EREWASH BOROUGH COUNCIL,227370,Erewash Museum,Reactive Maintenance,24/05/21,ALPHA PARTNER (MIDLANDS)  LIMITED,952.50,May-21
EREWASH BOROUGH COUNCIL,227372,Merlin Way Depot - Ilkeston,PPM Mechanical and Equipment,24/05/21,ALPHA PARTNER (MIDLANDS)  LIMITED,360.00,May-21
EREWASH BOROUGH COUNCIL,226217,Erewash Museum,Planned Preventative Maintenance,21/04/21,ALPHA PARTNER (MIDLANDS)  LIMITED,660.00,May-21
EREWASH BOROUGH COUNCIL,226461,Parks Changing Rooms,Reactive Maintenance,04/05/21,ALPHA PARTNER (MIDLANDS)  LIMITED,744.00,May-21
EREWASH BOROUGH COUNCIL,227388,Parks Pavilions,Reactive Maintenance,24/05/21,ALPHA PARTNER (MIDLANDS)  LIMITED,830.00,May-21
EREWASH BOROUGH COUNCIL,226849,Balance Sheet,COVID 19 - Additional Restrictions Grant,20/05/21,REDACTED PERSONAL DATA,500.00,May-21
EREWASH BOROUGH COUNCIL,226903,Balance Sheet,COVID 19 - Additional Restrictions Grant,20/05/21,REDACTED PERSONAL DATA,500.00,May-21
EREWASH BOROUGH COUNCIL,226950,Balance Sheet,COVID 19 - Additional Restrictions Grant,20/05/21,AMALFI WOMAN LTD,"4,000.00",May-21
EREWASH BOROUGH COUNCIL,226855,Balance Sheet,COVID 19 - Additional Restrictions Grant,20/05/21,REDACTED PERSONAL DATA,500.00,May-21
EREWASH BOROUGH COUNCIL,227323,Balance Sheet,COVID 19 - Additional Restrictions Grant,25/05/21,AMK AUTOMOTIVE SOLUTIONS,"2,500.00",May-21
EREWASH BOROUGH COUNCIL,227334,Balance Sheet,COVID 19 - Additional Restrictions Grant,25/05/21,AMS PLATINUM SERVICES LTD,"2,500.00",May-21
EREWASH BOROUGH COUNCIL,226800,Balance Sheet,COVID 19 - Additional Restrictions Grant,20/05/21,REDACTED PERSONAL DATA,"1,000.00",May-21
EREWASH BOROUGH COUNCIL,227327,Balance Sheet,COVID 19 - Additional Restrictions Grant,25/05/21,ANGUS TREE CARE,"2,500.00",May-21
EREWASH BOROUGH COUNCIL,226807,Balance Sheet,COVID 19 - Additional Restrictions Grant,20/05/21,REDACTED PERSONAL DATA,"1,000.00",May-21
EREWASH BOROUGH COUNCIL,226937,Balance Sheet,COVID 19 - Additional Restrictions Grant,20/05/21,REDACTED PERSONAL DATA,500.00,May-21
EREWASH BOROUGH COUNCIL,227103,ICT Support Services,Office Paper,19/05/21,ANTALIS DOCUMENT SUPPLIES,253.00,May-21
EREWASH BOROUGH COUNCIL,226393,ICT Support Services,Security,30/04/21,APPCHECK LTD,"2,500.00",May-21
EREWASH BOROUGH COUNCIL,227239,Balance Sheet,COVID 19 - Additional Restrictions Grant,25/05/21,APPLETREE CATERING,"8,000.00",May-21
EREWASH BOROUGH COUNCIL,227297,Balance Sheet,COVID 19 - Additional Restrictions Grant,25/05/21,APPOLO DJS,"2,500.00",May-21
EREWASH BOROUGH COUNCIL,226973,Balance Sheet,COVID 19 - Additional Restrictions Grant,20/05/21,ARMSTRONG AVIATIO CLOTHING LTD T/A ILKESTON PPE & WORKWEAR,"2,667.00",May-21
EREWASH BOROUGH COUNCIL,226887,Balance Sheet,COVID 19 - Additional Restrictions Grant,20/05/21,REDACTED PERSONAL DATA,500.00,May-21
EREWASH BOROUGH COUNCIL,226843,Balance Sheet,COVID 19 - Additional Restrictions Grant,20/05/21,REDACTED PERSONAL DATA,500.00,May-21
EREWASH BOROUGH COUNCIL,226888,Balance Sheet,COVID 19 - Additional Restrictions Grant,20/05/21,REDACTED PERSONAL DATA,500.00,May-21
EREWASH BOROUGH COUNCIL,227236,Balance Sheet,COVID 19 - Additional Restrictions Grant,25/05/21,ATHERTON SIGNS & INSTALLATIONS LIMITED,"8,000.00",May-21
EREWASH BOROUGH COUNCIL,226853,Balance Sheet,COVID 19 - Additional Restrictions Grant,20/05/21,REDACTED PERSONAL DATA,500.00,May-21
EREWASH BOROUGH COUNCIL,227234,Balance Sheet,COVID 19 - Additional Restrictions Grant,25/05/21,A-UNIT LIMITED,"2,667.00",May-21
EREWASH BOROUGH COUNCIL,227412,Infectious Diseases and Food Poisoning,Work In Default,13/05/21,AW LYMN LTD,"1,430.00",May-21
EREWASH BOROUGH COUNCIL,226905,Balance Sheet,COVID 19 - Additional Restrictions Grant,20/05/21,REDACTED PERSONAL DATA,500.00,May-21
EREWASH BOROUGH COUNCIL,225901,Play Areas,Materials/Consumables,09/04/21,B & S CHAINS (MIDLANDS) LTD,653.00,May-21
EREWASH BOROUGH COUNCIL,226880,Balance Sheet,COVID 19 - Additional Restrictions Grant,20/05/21,REDACTED PERSONAL DATA,500.00,May-21
EREWASH BOROUGH COUNCIL,225963,Public Conveniences,Materials/Consumables,12/04/21,BANNER GROUP LIMITED,220.53,May-21
EREWASH BOROUGH COUNCIL,225946,Public Conveniences,Materials/Consumables,08/04/21,BANNER GROUP LIMITED,286.30,May-21
EREWASH BOROUGH COUNCIL,226821,Balance Sheet,COVID 19 - Additional Restrictions Grant,20/05/21,BARE WAXING,"1,000.00",May-21
EREWASH BOROUGH COUNCIL,227235,Balance Sheet,COVID 19 - Additional Restrictions Grant,25/05/21,BARGAIN HOMES,"2,667.00",May-21
EREWASH BOROUGH COUNCIL,227193,Balance Sheet,COVID 19 - Additional Restrictions Grant,25/05/21,BARKINGHAM PALACE ANIMAL HOTEL,"2,667.00",May-21
EREWASH BOROUGH COUNCIL,226874,Balance Sheet,COVID 19 - Additional Restrictions Grant,20/05/21,REDACTED PERSONAL DATA,500.00,May-21
EREWASH BOROUGH COUNCIL,226975,Balance Sheet,COVID 19 - Additional Restrictions Grant,20/05/21,BATH STREET FISH BAR,"1,500.00",May-21
EREWASH BOROUGH COUNCIL,227341,Balance Sheet,COVID 19 - Additional Restrictions Grant,25/05/21,BB BUTTERFLY,"1,500.00",May-21
EREWASH BOROUGH COUNCIL,226315,Balance Sheet,PCC - Election,26/04/21,BE EVENT HIRE,960.00,May-21
EREWASH BOROUGH COUNCIL,226622,Balance Sheet,PCC - Election,10/05/21,BE EVENT HIRE,"1,114.00",May-21
EREWASH BOROUGH COUNCIL,227289,Balance Sheet,COVID 19 - Additional Restrictions Grant,25/05/21,BEAUMONT INDUSTRIES,"2,500.00",May-21
EREWASH BOROUGH COUNCIL,226804,Balance Sheet,COVID 19 - Additional Restrictions Grant,20/05/21,BEAUTY LOUNGE BY REET,"1,000.00",May-21
EREWASH BOROUGH COUNCIL,226841,Balance Sheet,COVID 19 - Additional Restrictions Grant,20/05/21,REDACTED PERSONAL DATA,500.00,May-21
EREWASH BOROUGH COUNCIL,227332,Balance Sheet,COVID 19 - Additional Restrictions Grant,25/05/21,BESPOKE WEDDINGS (KIRSTY MORAN),"2,500.00",May-21
EREWASH BOROUGH COUNCIL,227264,Balance Sheet,COVID 19 - Additional Restrictions Grant,25/05/21,BEV SOUTHERN-WARBURTON COACHING & PERSONAL DEVELOPMENT,"2,500.00",May-21
EREWASH BOROUGH COUNCIL,226952,Balance Sheet,COVID 19 - Additional Restrictions Grant,20/05/21,BLASTING SOLUTIONS LTD,"2,667.00",May-21
EREWASH BOROUGH COUNCIL,226817,Balance Sheet,COVID 19 - Additional Restrictions Grant,20/05/21,BONNIES BEAUTY SPOT,"1,000.00",May-21
EREWASH BOROUGH COUNCIL,226681,Balance Sheet,PCC - Election,18/05/21,BORROWASH METHODIST CHURCH,350.00,May-21
EREWASH BOROUGH COUNCIL,226626,Balance Sheet,PCC - Election,10/05/21,BRANDON HIRE STATION,"1,646.58",May-21
EREWASH BOROUGH COUNCIL,226683,Balance Sheet,PCC - Election,18/05/21,BREASTON METHODIST CHURCH.,256.00,May-21
EREWASH BOROUGH COUNCIL,226478,ICT Support Services,Telephones,22/04/21,BRITISH TELECOMMUNICATIONS PLC,"1,642.79",May-21
EREWASH BOROUGH COUNCIL,227192,Balance Sheet,COVID 19 - Additional Restrictions Grant,25/05/21,BROOKSIDE BOARDING KENNELS & CATTERY,"2,667.00",May-21
EREWASH BOROUGH COUNCIL,226782,Balance Sheet,COVID 19 - Additional Restrictions Grant,20/05/21,BROWFX MICROBLADING,"1,000.00",May-21
EREWASH BOROUGH COUNCIL,226605,Occupational Health and Welfare,Occupational Health Service,01/05/21,BUPA HEALTH CLINICS,418.55,May-21
EREWASH BOROUGH COUNCIL,227241,Balance Sheet,COVID 19 - Additional Restrictions Grant,25/05/21,C AND A MOTOR SERVICES,"8,000.00",May-21
EREWASH BOROUGH COUNCIL,227199,Balance Sheet,COVID 19 - Additional Restrictions Grant,25/05/21,CALIPOLOGY LIMITED,"2,667.00",May-21
EREWASH BOROUGH COUNCIL,227316,Balance Sheet,COVID 19 - Additional Restrictions Grant,25/05/21,CANTERBURY'S HOME IMPROVEMENTS,"2,500.00",May-21
EREWASH BOROUGH COUNCIL,226599,Treasury Management and Bank Charges,Credit/Debit Card Charges,15/04/21,CAPITA,"3,527.06",May-21
EREWASH BOROUGH COUNCIL,227231,Balance Sheet,COVID 19 - Additional Restrictions Grant,25/05/21,CAPTAIN KIRK LIMITED,"2,667.00",May-21
EREWASH BOROUGH COUNCIL,227261,Balance Sheet,COVID 19 - Additional Restrictions Grant,25/05/21,CARBITZ LTD,"2,500.00",May-21
EREWASH BOROUGH COUNCIL,226825,Balance Sheet,COVID 19 - Additional Restrictions Grant,20/05/21,CAROLINE STEVENSON,"1,000.00",May-21
EREWASH BOROUGH COUNCIL,227198,Balance Sheet,COVID 19 - Additional Restrictions Grant,25/05/21,CASTLEFIELD KENNELS LIMITED,"2,667.00",May-21
EREWASH BOROUGH COUNCIL,226228,ICT Support Services,General Equipment,08/04/21,CCS MEDIA LIMITED,230.92,May-21
EREWASH BOROUGH COUNCIL,226216,ICT Support Services,Maintenance of Equipment,22/04/21,CCS MEDIA LIMITED,256.96,May-21
EREWASH BOROUGH COUNCIL,226900,Balance Sheet,COVID 19 - Additional Restrictions Grant,20/05/21,REDACTED PERSONAL DATA,500.00,May-21
EREWASH BOROUGH COUNCIL,227066,Balance Sheet,Fuel Store,17/05/21,CERTAS ENERGY UK LIMITED T/A CARLTON FUELS,"29,973.00",May-21
EREWASH BOROUGH COUNCIL,226949,Balance Sheet,COVID 19 - Additional Restrictions Grant,20/05/21,CFA STORES LTD,"4,000.00",May-21
EREWASH BOROUGH COUNCIL,226977,Balance Sheet,COVID 19 - Additional Restrictions Grant,20/05/21,CHAMBERS PET SUPPLIES LTD,"2,667.00",May-21
EREWASH BOROUGH COUNCIL,226923,Balance Sheet,COVID 19 - Additional Restrictions Grant,20/05/21,REDACTED PERSONAL DATA,500.00,May-21
EREWASH BOROUGH COUNCIL,226788,Balance Sheet,COVID 19 - Additional Restrictions Grant,20/05/21,CHARLOTTE HALLIDAY HAIR,"1,000.00",May-21
EREWASH BOROUGH COUNCIL,226895,Balance Sheet,COVID 19 - Additional Restrictions Grant,20/05/21,REDACTED PERSONAL DATA,500.00,May-21
EREWASH BOROUGH COUNCIL,226856,Balance Sheet,COVID 19 - Additional Restrictions Grant,20/05/21,REDACTED PERSONAL DATA,500.00,May-21
EREWASH BOROUGH COUNCIL,227309,Balance Sheet,COVID 19 - Additional Restrictions Grant,25/05/21,CHECKMATE SOM,"2,500.00",May-21
EREWASH BOROUGH COUNCIL,226845,Balance Sheet,COVID 19 - Additional Restrictions Grant,20/05/21,CHERYLS HABERDASHERY,500.00,May-21
EREWASH BOROUGH COUNCIL,226685,Balance Sheet,PCC - Election,18/05/21,CHRISTCHURCH COTMANHAY & SHIPLEY,300.00,May-21
EREWASH BOROUGH COUNCIL,226394,Personnel,Recruitment Expenses,28/04/21,CIEH,800.00,May-21
EREWASH BOROUGH COUNCIL,226523,Revenues and Benefits,Software Licences,07/05/21,CIVICA UK LIMITED,541.15,May-21
EREWASH BOROUGH COUNCIL,226987,Balance Sheet,COVID 19 - Additional Restrictions Grant,20/05/21,CJ ENTERTAINMENT HIRE,"2,500.00",May-21
EREWASH BOROUGH COUNCIL,227321,Balance Sheet,COVID 19 - Additional Restrictions Grant,25/05/21,CKHECKMATE DRIVER TRAINING,"2,500.00",May-21
EREWASH BOROUGH COUNCIL,226815,Balance Sheet,COVID 19 - Additional Restrictions Grant,20/05/21,REDACTED PERSONAL DATA,"1,000.00",May-21
EREWASH BOROUGH COUNCIL,227177,ICT Support Services,Mobile Phones,01/05/21,CLASS AFFINITY PROJECTS LTD,"2,019.19",May-21
EREWASH BOROUGH COUNCIL,227200,Balance Sheet,COVID 19 - Additional Restrictions Grant,25/05/21,COLUMBINE FARM KENNELS,"2,667.00",May-21
EREWASH BOROUGH COUNCIL,227154,Civic Accommodation - Ilkeston,PPM Mechanical and Equipment,04/05/21,CONCEPT ELEVATORS (UK) LTD,149.04,May-21
EREWASH BOROUGH COUNCIL,227154,Erewash Museum,PPM Mechanical and Equipment,04/05/21,CONCEPT ELEVATORS (UK) LTD,43.00,May-21
EREWASH BOROUGH COUNCIL,227154,Civic Accommodation - Long Eaton,PPM Mechanical and Equipment,04/05/21,CONCEPT ELEVATORS (UK) LTD,53.00,May-21
EREWASH BOROUGH COUNCIL,227154,Rutland Sports Park,PPM Mechanical and Equipment,04/05/21,CONCEPT ELEVATORS (UK) LTD,53.00,May-21
EREWASH BOROUGH COUNCIL,227154,Merlin Way Depot - Ilkeston,PPM Mechanical and Equipment,04/05/21,CONCEPT ELEVATORS (UK) LTD,62.63,May-21
EREWASH BOROUGH COUNCIL,226842,Balance Sheet,COVID 19 - Additional Restrictions Grant,20/05/21,REDACTED PERSONAL DATA,500.00,May-21
EREWASH BOROUGH COUNCIL,227225,Balance Sheet,COVID 19 - Additional Restrictions Grant,25/05/21,CRAZYFOREST LTD,"2,667.00",May-21
EREWASH BOROUGH COUNCIL,226774,Arts Development,General Equipment,16/05/21,CREATIVE INTERIORS,250.00,May-21
EREWASH BOROUGH COUNCIL,227398,Street Scene,Materials/Consumables,19/05/21,CROMWELL POLYTHENE LTD,"1,966.20",May-21
EREWASH BOROUGH COUNCIL,227272,Balance Sheet,COVID 19 - Additional Restrictions Grant,25/05/21,CROWDPULLERS (EVENTS) LIMITED,"2,500.00",May-21
EREWASH BOROUGH COUNCIL,226916,Balance Sheet,COVID 19 - Additional Restrictions Grant,20/05/21,CRUISE-IN-CONTROL LIMITED,500.00,May-21
EREWASH BOROUGH COUNCIL,225927,Transport Trading Account,Maintenance of Equipment,07/04/21,CSEM TECHNOLOGIES LIMTIED,542.51,May-21
EREWASH BOROUGH COUNCIL,227226,Balance Sheet,COVID 19 - Additional Restrictions Grant,25/05/21,D HARTFIELD DEVELOPMENTS LTD,"2,667.00",May-21
EREWASH BOROUGH COUNCIL,227325,Balance Sheet,COVID 19 - Additional Restrictions Grant,25/05/21,DANCING FEET SCHOOL OF DANCE,"2,500.00",May-21
EREWASH BOROUGH COUNCIL,226801,Balance Sheet,COVID 19 - Additional Restrictions Grant,20/05/21,REDACTED PERSONAL DATA,"1,000.00",May-21
EREWASH BOROUGH COUNCIL,226614,Green Space,Contracted Services,12/05/21,DART LTD,608.00,May-21
EREWASH BOROUGH COUNCIL,226649,Green Space,Training,17/05/21,DART LTD,"1,656.00",May-21
EREWASH BOROUGH COUNCIL,227217,Balance Sheet,COVID 19 - Additional Restrictions Grant,25/05/21,DAVID GUNDRY UPHOLSTERY LTD.,"4,000.00",May-21
EREWASH BOROUGH COUNCIL,226608,Development Control - Fee Earning,Consultants Fees,30/04/21,DAVID HUGHES AGRICULTURAL CONSULTANCY LTD,600.00,May-21
EREWASH BOROUGH COUNCIL,227313,Balance Sheet,COVID 19 - Additional Restrictions Grant,25/05/21,DB PLUMBING & PROPERTY SERVICES LTD,"2,500.00",May-21
EREWASH BOROUGH COUNCIL,226796,Balance Sheet,COVID 19 - Additional Restrictions Grant,20/05/21,DB SPORTS MASSAGE THERAPY,"1,000.00",May-21
EREWASH BOROUGH COUNCIL,226509,Household/Residual Waste Collection,Repairs and Maintenance,04/05/21,DENNIS EAGLE LTD,680.64,May-21
EREWASH BOROUGH COUNCIL,226514,Household/Residual Waste Collection,Repairs and Maintenance,08/04/21,DENNIS EAGLE LTD,682.95,May-21
EREWASH BOROUGH COUNCIL,226667,Kerbside Dry Recycling Collection,Repairs and Maintenance,30/04/21,DENNIS EAGLE LTD,457.58,May-21
EREWASH BOROUGH COUNCIL,226637,Household/Residual Waste Collection,Repairs and Maintenance,02/02/21,DENNIS EAGLE LTD,318.72,May-21
EREWASH BOROUGH COUNCIL,226667,Household/Residual Waste Collection,Repairs and Maintenance,30/04/21,DENNIS EAGLE LTD,517.50,May-21
EREWASH BOROUGH COUNCIL,226513,Trade Waste,Repairs and Maintenance,12/04/21,DENNIS EAGLE LTD,"2,614.12",May-21
EREWASH BOROUGH COUNCIL,227133,Balance Sheet,COVID19 Small Business and RHL Grant,29/04/21,"DEPARTMENT FOR BUSINESS, ENERGY AND INDUSTRIAL STRATEGY","4,121,000.00",May-21
EREWASH BOROUGH COUNCIL,227133,Balance Sheet,COVID19 Discretionary Business Grants,29/04/21,"DEPARTMENT FOR BUSINESS, ENERGY AND INDUSTRIAL STRATEGY","-1,085,400.00",May-21
EREWASH BOROUGH COUNCIL,227122,Non Domestic Rates Income and Expenditure,NNDR Tariff,19/05/21,DERBY CITY COUNCIL,"585,635.60",May-21
EREWASH BOROUGH COUNCIL,227410,Urban Renewal,Grants and Subscriptions,19/05/21,DERBY CITY COUNCIL,"2,500.00",May-21
EREWASH BOROUGH COUNCIL,227115,Balance Sheet,Derby City Council,23/04/21,DERBY CITY COUNCIL,"44,710.70",May-21
EREWASH BOROUGH COUNCIL,227115,Treasury Management and Bank Charges,Transferred Debt - Interest,23/04/21,DERBY CITY COUNCIL,"1,152.79",May-21
EREWASH BOROUGH COUNCIL,227121,Non Domestic Rates Income and Expenditure,NNDR Tariff,04/05/21,DERBY CITY COUNCIL,"585,635.60",May-21
EREWASH BOROUGH COUNCIL,227003,Homelessness,Temporary Accommodation,04/05/21,DERBY GUESTHOUSE LIMITED,240.00,May-21
EREWASH BOROUGH COUNCIL,227083,Homelessness,Temporary Accommodation,19/05/21,DERBY GUESTHOUSE LIMITED,520.00,May-21
EREWASH BOROUGH COUNCIL,227110,Balance Sheet,Payroll Collection A/c - Credit Union,24/05/21,DERBYSHIRE COMMUNITY BANK,330.00,May-21
EREWASH BOROUGH COUNCIL,226607,Balance Sheet,Grant Payments,04/05/21,DERBYSHIRE COUNTY COUNCIL...,"5,637.08",May-21
EREWASH BOROUGH COUNCIL,226449,Compensation and Pensions,Compensatory Added Years,07/04/21,DERBYSHIRE COUNTY COUNCIL...,"18,588.79",May-21
EREWASH BOROUGH COUNCIL,226452,Arts Development,Subscriptions,07/04/21,DERBYSHIRE COUNTY COUNCIL...,"3,249.00",May-21
EREWASH BOROUGH COUNCIL,226531,Balance Sheet,Payroll Collection A/c - Superannuation,11/05/21,DERBYSHIRE COUNTY COUNCIL...,"206,439.60",May-21
EREWASH BOROUGH COUNCIL,226675,Local Land Charges,County Council Search Charges,13/04/21,DERBYSHIRE COUNTY COUNCIL...,"4,832.76",May-21
EREWASH BOROUGH COUNCIL,227017,Compensation and Pensions,Compensatory Added Years,14/04/21,DERBYSHIRE COUNTY COUNCIL...,"124,978.90",May-21
EREWASH BOROUGH COUNCIL,226606,Balance Sheet,Grant Payments,19/04/21,DERBYSHIRE COUNTY COUNCIL...,"5,416.40",May-21
EREWASH BOROUGH COUNCIL,226381,Balance Sheet,Grant Payments,08/03/21,DERBYSHIRE COUNTY COUNCIL...,"6,348.14",May-21
EREWASH BOROUGH COUNCIL,226531,Balance Sheet,Payroll Collection A/c - Purchase Added Years,11/05/21,DERBYSHIRE COUNTY COUNCIL...,247.22,May-21
EREWASH BOROUGH COUNCIL,226766,Homelessness,Fees Costs and Expenses,11/03/21,DERBYSHIRE DALES DISTRICT COUNCIL,"2,000.00",May-21
EREWASH BOROUGH COUNCIL,227405,Homelessness,Temporary Accommodation,10/05/21,DERVENTIO HOUSING TRUST CIC,790.13,May-21
EREWASH BOROUGH COUNCIL,227353,Balance Sheet,COVID 19 - Additional Restrictions Grant,25/05/21,DESIGNZ,"1,000.00",May-21
EREWASH BOROUGH COUNCIL,226941,Balance Sheet,COVID 19 - Additional Restrictions Grant,20/05/21,REDACTED PERSONAL DATA,500.00,May-21
EREWASH BOROUGH COUNCIL,226982,Balance Sheet,COVID 19 - Additional Restrictions Grant,20/05/21,DHIENDSA STORES,"2,500.00",May-21
EREWASH BOROUGH COUNCIL,227291,Balance Sheet,COVID 19 - Additional Restrictions Grant,25/05/21,DHIENDSA TRANSPORT,"2,500.00",May-21
EREWASH BOROUGH COUNCIL,226559,Chief Executives Office,Subscriptions,21/04/21,DISTRICT COUNCIL'S NETWORK,590.00,May-21
EREWASH BOROUGH COUNCIL,226559,Chief Executives Office,Subscriptions,21/04/21,DISTRICT COUNCIL'S NETWORK,"1,148.00",May-21
EREWASH BOROUGH COUNCIL,227326,Balance Sheet,COVID 19 - Additional Restrictions Grant,25/05/21,DMB PLASTERING,"2,500.00",May-21
EREWASH BOROUGH COUNCIL,227191,Balance Sheet,COVID 19 - Additional Restrictions Grant,25/05/21,DOGS R US,"2,667.00",May-21
EREWASH BOROUGH COUNCIL,226861,Balance Sheet,COVID 19 - Additional Restrictions Grant,20/05/21,DONS TAXIS,500.00,May-21
EREWASH BOROUGH COUNCIL,226960,Balance Sheet,COVID 19 - Additional Restrictions Grant,20/05/21,DOUBLE APEX TV LTD,"2,500.00",May-21
EREWASH BOROUGH COUNCIL,226983,Balance Sheet,COVID 19 - Additional Restrictions Grant,20/05/21,DRAYCOTT BREWING COMPANY LTD,"2,500.00",May-21
EREWASH BOROUGH COUNCIL,226623,Balance Sheet,PCC - Election,29/04/21,E.ON UK ENERGY SERVICES,275.00,May-21
EREWASH BOROUGH COUNCIL,227212,Balance Sheet,COVID 19 - Additional Restrictions Grant,25/05/21,EDGE 2 DETAIL LTD.,"4,000.00",May-21
EREWASH BOROUGH COUNCIL,226770,Neighbourhood Wardens,Contracted Services,18/04/21,EFFECTIVE SECURITY SERVICES LTD,"3,224.00",May-21
EREWASH BOROUGH COUNCIL,226765,Balance Sheet,PCC - Election,09/05/21,EFFECTIVE SECURITY SERVICES LTD,"1,023.00",May-21
EREWASH BOROUGH COUNCIL,226768,Neighbourhood Wardens,Contracted Services,02/05/21,EFFECTIVE SECURITY SERVICES LTD,"2,480.00",May-21
EREWASH BOROUGH COUNCIL,226769,Neighbourhood Wardens,Contracted Services,25/04/21,EFFECTIVE SECURITY SERVICES LTD,"3,224.00",May-21
EREWASH BOROUGH COUNCIL,226832,Balance Sheet,COVID 19 - Additional Restrictions Grant,20/05/21,ELENA'S BEAUTY & NAILS,"1,000.00",May-21
EREWASH BOROUGH COUNCIL,226689,Balance Sheet,PCC - Election,18/05/21,ELIM CHRISTIAN CENTRE,360.00,May-21
EREWASH BOROUGH COUNCIL,226860,Balance Sheet,COVID 19 - Additional Restrictions Grant,20/05/21,ELITE CONNECT,500.00,May-21
EREWASH BOROUGH COUNCIL,226988,Balance Sheet,COVID 19 - Additional Restrictions Grant,20/05/21,ELITE FINISHING,"1,500.00",May-21
EREWASH BOROUGH COUNCIL,227301,Balance Sheet,COVID 19 - Additional Restrictions Grant,25/05/21,REDACTED PERSONAL DATA,"2,500.00",May-21
EREWASH BOROUGH COUNCIL,226995,Balance Sheet,COVID 19 - Additional Restrictions Grant,20/05/21,EMMA HARRIS LINGERIE LTD,"1,500.00",May-21
EREWASH BOROUGH COUNCIL,227285,Balance Sheet,COVID 19 - Additional Restrictions Grant,25/05/21,EMPIRE AUTOMATIC DRIVING SCHOOL,"2,500.00",May-21
EREWASH BOROUGH COUNCIL,226480,Green Space,Hire Charges,30/04/21,ENTERPRISE FLEX E RENT,398.34,May-21
EREWASH BOROUGH COUNCIL,226672,Household/Residual Waste Collection,Training,22/04/21,ENTERPRISE TRANSPORT TRAINING,292.50,May-21
EREWASH BOROUGH COUNCIL,227279,Balance Sheet,COVID 19 - Additional Restrictions Grant,25/05/21,EQUINE INSPIRATION,"2,500.00",May-21
EREWASH BOROUGH COUNCIL,226690,Balance Sheet,PCC - Election,18/05/21,EREWASH INDOOR BOWLING CLUB,300.00,May-21
EREWASH BOROUGH COUNCIL,227422,Balance Sheet,Payroll Collection A/c - Labour Party Funds,25/05/21,EREWASH LABOUR GROUP,509.32,May-21
EREWASH BOROUGH COUNCIL,227134,Balance Sheet,COVID 19 - Additional Restrictions Grant,24/05/21,EREWASH SOUND,"10,700.00",May-21
EREWASH BOROUGH COUNCIL,226691,Balance Sheet,PCC - Election,18/05/21,EREWASH VALLEY GYMNASTICS CLUB,250.00,May-21
EREWASH BOROUGH COUNCIL,226692,Balance Sheet,PCC - Election,18/05/21,EREWASH VALLEY GYMNASTICS CLUB,250.00,May-21
EREWASH BOROUGH COUNCIL,226521,Community Grants,Health Improvement Fund,19/04/21,EREWASH VOLUNTARY ACTION,"3,000.00",May-21
EREWASH BOROUGH COUNCIL,226420,External Audit,Audit Fees,22/04/21,ERNST & YOUNG LLP.,"10,909.50",May-21
EREWASH BOROUGH COUNCIL,226162,Arts Development,Special Events,12/04/21,ESPO,463.00,May-21
EREWASH BOROUGH COUNCIL,226693,Balance Sheet,PCC - Election,18/05/21,EVENTIDE COMMUNITY HALL.,290.00,May-21
EREWASH BOROUGH COUNCIL,226728,Balance Sheet,COVID 19 - Additional Restrictions Grant,18/05/21,EVETTES HAIR SALON,"1,964.00",May-21
EREWASH BOROUGH COUNCIL,227347,Balance Sheet,COVID 19 - Additional Restrictions Grant,25/05/21,EXCLUSIVE BY DESIGN UK LTD,"1,500.00",May-21
EREWASH BOROUGH COUNCIL,226981,Balance Sheet,COVID 19 - Additional Restrictions Grant,20/05/21,EXPRESS CHIPPY & PIZZA LTD,"2,667.00",May-21
EREWASH BOROUGH COUNCIL,227232,Balance Sheet,COVID 19 - Additional Restrictions Grant,25/05/21,EXPRESS DRY CLEANING,"2,667.00",May-21
EREWASH BOROUGH COUNCIL,226384,Street Scene,Agency Staff,19/04/21,EXTRA PERSONNEL LTD,315.63,May-21
EREWASH BOROUGH COUNCIL,226386,Street Scene,Agency Staff,19/04/21,EXTRA PERSONNEL LTD,"2,448.37",May-21
EREWASH BOROUGH COUNCIL,226534,Public Conveniences,Agency Staff,26/04/21,EXTRA PERSONNEL LTD,607.95,May-21
EREWASH BOROUGH COUNCIL,226385,Street Scene,Agency Staff,19/04/21,EXTRA PERSONNEL LTD,"2,182.00",May-21
EREWASH BOROUGH COUNCIL,226648,Street Scene,Agency Staff,03/05/21,EXTRA PERSONNEL LTD,"2,294.56",May-21
EREWASH BOROUGH COUNCIL,227426,Street Scene,Agency Staff,10/05/21,EXTRA PERSONNEL LTD,"2,620.00",May-21
EREWASH BOROUGH COUNCIL,227073,Kerbside Dry Recycling Collection,Agency Staff,22/02/21,EXTRA PERSONNEL LTD,"2,236.31",May-21
EREWASH BOROUGH COUNCIL,226534,Green Space,Agency Staff,26/04/21,EXTRA PERSONNEL LTD,"4,690.64",May-21
EREWASH BOROUGH COUNCIL,226535,Green Space,Agency Staff,26/04/21,EXTRA PERSONNEL LTD,"2,373.77",May-21
EREWASH BOROUGH COUNCIL,226647,Green Space,Agency Staff,03/05/21,EXTRA PERSONNEL LTD,289.38,May-21
EREWASH BOROUGH COUNCIL,226645,Street Scene,Agency Staff,03/05/21,EXTRA PERSONNEL LTD,"2,323.95",May-21
EREWASH BOROUGH COUNCIL,226646,Street Scene,Agency Staff,03/05/21,EXTRA PERSONNEL LTD,350.70,May-21
EREWASH BOROUGH COUNCIL,227073,Household/Residual Waste Collection,Agency Staff,22/02/21,EXTRA PERSONNEL LTD,"3,354.46",May-21
EREWASH BOROUGH COUNCIL,227426,Green Space,Materials/Consumables,10/05/21,EXTRA PERSONNEL LTD,"2,621.93",May-21
EREWASH BOROUGH COUNCIL,226385,Green Space,Agency Staff,19/04/21,EXTRA PERSONNEL LTD,"2,186.71",May-21
EREWASH BOROUGH COUNCIL,227381,Green Space,Agency Staff,18/01/21,EXTRA PERSONNEL LTD,"1,345.70",May-21
EREWASH BOROUGH COUNCIL,227427,Street Scene,Agency Staff,10/05/21,EXTRA PERSONNEL LTD,280.56,May-21
EREWASH BOROUGH COUNCIL,226386,Green Space,Agency Staff,19/04/21,EXTRA PERSONNEL LTD,"2,439.04",May-21
EREWASH BOROUGH COUNCIL,226645,Green Space,Agency Staff,03/05/21,EXTRA PERSONNEL LTD,"2,323.95",May-21
EREWASH BOROUGH COUNCIL,226385,Public Conveniences,Agency Staff,19/04/21,EXTRA PERSONNEL LTD,310.73,May-21
EREWASH BOROUGH COUNCIL,227391,Green Space,Materials/Consumables,10/05/21,EXTRA PERSONNEL LTD,"2,320.90",May-21
EREWASH BOROUGH COUNCIL,227382,Green Space,Agency Staff,08/02/21,EXTRA PERSONNEL LTD,"1,695.67",May-21
EREWASH BOROUGH COUNCIL,226533,Street Scene,Agency Staff,26/04/21,EXTRA PERSONNEL LTD,280.56,May-21
EREWASH BOROUGH COUNCIL,227381,Street Scene,Agency Staff,18/01/21,EXTRA PERSONNEL LTD,"1,345.65",May-21
EREWASH BOROUGH COUNCIL,227391,Street Scene,Agency Staff,10/05/21,EXTRA PERSONNEL LTD,"2,320.90",May-21
EREWASH BOROUGH COUNCIL,227382,Street Scene,Agency Staff,08/02/21,EXTRA PERSONNEL LTD,"1,695.46",May-21
EREWASH BOROUGH COUNCIL,226648,Green Space,Materials/Consumables,03/05/21,EXTRA PERSONNEL LTD,"2,294.65",May-21
EREWASH BOROUGH COUNCIL,226645,Public Conveniences,Agency Staff,03/05/21,EXTRA PERSONNEL LTD,499.87,May-21
EREWASH BOROUGH COUNCIL,227391,Public Conveniences,Agency Staff,10/05/21,EXTRA PERSONNEL LTD,607.82,May-21
EREWASH BOROUGH COUNCIL,226535,Street Scene,Agency Staff,26/04/21,EXTRA PERSONNEL LTD,"2,373.77",May-21
EREWASH BOROUGH COUNCIL,227211,Balance Sheet,COVID 19 - Additional Restrictions Grant,25/05/21,F & M STEED LTD,"4,000.00",May-21
EREWASH BOROUGH COUNCIL,226892,Balance Sheet,COVID 19 - Additional Restrictions Grant,20/05/21,REDACTED PERSONAL DATA,500.00,May-21
EREWASH BOROUGH COUNCIL,226859,Balance Sheet,COVID 19 - Additional Restrictions Grant,20/05/21,REDACTED PERSONAL DATA,500.00,May-21
EREWASH BOROUGH COUNCIL,227208,Balance Sheet,COVID 19 - Additional Restrictions Grant,25/05/21,FAIRFIELD BOARDING CATTERY,"1,500.00",May-21
EREWASH BOROUGH COUNCIL,227030,Balance Sheet,PCC - Election,06/04/21,FANATIC TECH SOUND SYSTEMS,950.00,May-21
EREWASH BOROUGH COUNCIL,226802,Balance Sheet,COVID 19 - Additional Restrictions Grant,20/05/21,FEATHERS BEAUTY,"1,000.00",May-21
EREWASH BOROUGH COUNCIL,226808,Balance Sheet,COVID 19 - Additional Restrictions Grant,20/05/21,REDACTED PERSONAL DATA,"1,000.00",May-21
EREWASH BOROUGH COUNCIL,226827,Balance Sheet,COVID 19 - Additional Restrictions Grant,20/05/21,FLEET 2 WHEELS DRIVING SCHOOL,"1,000.00",May-21
EREWASH BOROUGH COUNCIL,227215,Balance Sheet,COVID 19 - Additional Restrictions Grant,25/05/21,FNCSR LTD,"12,000.00",May-21
EREWASH BOROUGH COUNCIL,227194,Balance Sheet,COVID 19 - Additional Restrictions Grant,25/05/21,FOREST SCHOOL NURSERIES LTD,"2,667.00",May-21
EREWASH BOROUGH COUNCIL,226866,Balance Sheet,COVID 19 - Additional Restrictions Grant,20/05/21,REDACTED PERSONAL DATA,500.00,May-21
EREWASH BOROUGH COUNCIL,227233,Balance Sheet,COVID 19 - Additional Restrictions Grant,25/05/21,G AND V CARS LTD,"8,000.00",May-21
EREWASH BOROUGH COUNCIL,226794,Balance Sheet,COVID 19 - Additional Restrictions Grant,20/05/21,G L D AESTHETICS,"1,000.00",May-21
EREWASH BOROUGH COUNCIL,227055,Kerbside Dry Recycling Collection,Waste Disposal,30/04/21,GAE SMITH HOLDINGS T/A CASEPAK,"37,045.57",May-21
EREWASH BOROUGH COUNCIL,226695,Balance Sheet,PCC - Election,18/05/21,GATEWAY CENTRE,400.00,May-21
EREWASH BOROUGH COUNCIL,226990,Balance Sheet,COVID 19 - Additional Restrictions Grant,20/05/21,GAVIN DARBY T/A FRAILLOOP,"1,500.00",May-21
EREWASH BOROUGH COUNCIL,227302,Balance Sheet,COVID 19 - Additional Restrictions Grant,25/05/21,GCWELLBEING LTD,"2,500.00",May-21
EREWASH BOROUGH COUNCIL,226488,Parks Pavilions,Reactive Maintenance,05/05/21,GDUK DOOR SOLUTIONS LIMITED,280.00,May-21
EREWASH BOROUGH COUNCIL,227160,Civic Accommodation - Ilkeston,PPM Mechanical and Equipment,10/05/21,GDUK DOOR SOLUTIONS LIMITED,245.00,May-21
EREWASH BOROUGH COUNCIL,227396,Civic Accommodation - Long Eaton,Repairs and Maintenance,27/11/20,GDUK DOOR SOLUTIONS LIMITED,377.00,May-21
EREWASH BOROUGH COUNCIL,227368,Planning Policy,Consultants Fees,30/04/21,GEDLING BOROUGH COUNCIL.,250.00,May-21
EREWASH BOROUGH COUNCIL,227383,Planning Policy,Consultants Fees,21/05/21,GEDLING BOROUGH COUNCIL.,"5,345.12",May-21
EREWASH BOROUGH COUNCIL,226440,Street Scene,Repairs and Maintenance,06/04/21,GEE DIESEL SERVICES LIMITED,"1,376.47",May-21
EREWASH BOROUGH COUNCIL,226459,Car Parking,Planned Preventative Maintenance,30/04/21,GEO POLLUTION TECHNOLOGIES UK LIMITED,"1,260.00",May-21
EREWASH BOROUGH COUNCIL,226721,Balance Sheet,COVID 19 - Additional Restrictions Grant,18/05/21,REDACTED PERSONAL DATA,"3,464.00",May-21
EREWASH BOROUGH COUNCIL,226556,Balance Sheet,COVID 19 - Additional Restrictions Grant,12/05/21,GINFLIGHT COMPANY LIMITED,500.00,May-21
EREWASH BOROUGH COUNCIL,227207,Balance Sheet,COVID 19 - Additional Restrictions Grant,25/05/21,GINFLIGHT COMPANY LIMITED,"12,000.00",May-21
EREWASH BOROUGH COUNCIL,226650,Balance Sheet,PCC - Election,09/05/21,GO TRAFFIC MANAGEMENT,675.00,May-21
EREWASH BOROUGH COUNCIL,227139,Green Space,Contracted Services,16/05/21,GO TRAFFIC MANAGEMENT,895.00,May-21
EREWASH BOROUGH COUNCIL,226060,Green Space,Contracted Services,11/04/21,GO TRAFFIC MANAGEMENT,895.00,May-21
EREWASH BOROUGH COUNCIL,226424,Green Space,Contracted Services,25/04/21,GO TRAFFIC MANAGEMENT,795.00,May-21
EREWASH BOROUGH COUNCIL,226831,Balance Sheet,COVID 19 - Additional Restrictions Grant,20/05/21,GOULD BARBERS (EAST ANGLIA) LTD,"1,000.00",May-21
EREWASH BOROUGH COUNCIL,227307,Balance Sheet,COVID 19 - Additional Restrictions Grant,25/05/21,GRANT STIRLING TRAVEL LTD,"2,500.00",May-21
EREWASH BOROUGH COUNCIL,226156,Homelessness,Agency Staff,14/04/21,GREENACRE RECRUITMENT,354.92,May-21
EREWASH BOROUGH COUNCIL,226156,Homelessness,Agency Staff,14/04/21,GREENACRE RECRUITMENT,517.63,May-21
EREWASH BOROUGH COUNCIL,226157,Homelessness,Agency Staff,08/04/21,GREENACRE RECRUITMENT,491.67,May-21
EREWASH BOROUGH COUNCIL,226157,Homelessness,Agency Staff,08/04/21,GREENACRE RECRUITMENT,337.11,May-21
EREWASH BOROUGH COUNCIL,226068,Green Space,Project Grants,14/04/21,GROUNDWORK GREATER NOTTINGHAM,"1,600.00",May-21
EREWASH BOROUGH COUNCIL,226911,Balance Sheet,COVID 19 - Additional Restrictions Grant,20/05/21,REDACTED PERSONAL DATA,500.00,May-21
EREWASH BOROUGH COUNCIL,227300,Balance Sheet,COVID 19 - Additional Restrictions Grant,25/05/21,H PELL @ BROWNS HAIRDRESSING,"2,500.00",May-21
EREWASH BOROUGH COUNCIL,226812,Balance Sheet,COVID 19 - Additional Restrictions Grant,20/05/21,HAILSNAILS,"1,000.00",May-21
EREWASH BOROUGH COUNCIL,226790,Balance Sheet,COVID 19 - Additional Restrictions Grant,20/05/21,HAIR BY NATALIE,"1,000.00",May-21
EREWASH BOROUGH COUNCIL,226936,Balance Sheet,COVID 19 - Additional Restrictions Grant,20/05/21,REDACTED PERSONAL DATA,500.00,May-21
EREWASH BOROUGH COUNCIL,226784,Balance Sheet,COVID 19 - Additional Restrictions Grant,20/05/21,REDACTED PERSONAL DATA,"1,000.00",May-21
EREWASH BOROUGH COUNCIL,226515,Development Control - Fee Earning,Reference Literature and Publications,01/05/21,HAYMARKET MEDIA GROUP LTD,"3,395.00",May-21
EREWASH BOROUGH COUNCIL,226876,Balance Sheet,COVID 19 - Additional Restrictions Grant,20/05/21,HEALEYS TOILETRIES,500.00,May-21
EREWASH BOROUGH COUNCIL,227203,Balance Sheet,COVID 19 - Additional Restrictions Grant,25/05/21,HELPING HOOVES DERBYSHIRE CIC,"2,667.00",May-21
EREWASH BOROUGH COUNCIL,226283,Green Space,Repairs and Maintenance,22/04/21,HENTON & CHATTELL LTD,513.57,May-21
EREWASH BOROUGH COUNCIL,226611,Green Space,Repairs and Maintenance,24/03/21,HENTON & CHATTELL LTD,"1,428.41",May-21
EREWASH BOROUGH COUNCIL,226907,Balance Sheet,COVID 19 - Additional Restrictions Grant,20/05/21,HERE & THERE TAXIS,500.00,May-21
EREWASH BOROUGH COUNCIL,227243,Balance Sheet,COVID 19 - Additional Restrictions Grant,25/05/21,HH AND SPOOKY NIGHTS LTD,"8,000.00",May-21
EREWASH BOROUGH COUNCIL,226676,Balance Sheet,Payroll Collection A/c - Recovery of Student Loan,18/05/21,HMRC CUMBERNAULD,"1,170.00",May-21
EREWASH BOROUGH COUNCIL,226676,Balance Sheet,Payroll Collection A/c - National Insurance,18/05/21,HMRC CUMBERNAULD,"100,979.06",May-21
EREWASH BOROUGH COUNCIL,226676,Balance Sheet,Payroll Collection A/c - Income Tax,18/05/21,HMRC CUMBERNAULD,"66,576.42",May-21
EREWASH BOROUGH COUNCIL,226676,Personnel,Apprenticeship Levy,18/05/21,HMRC CUMBERNAULD,"-1,250.00",May-21
EREWASH BOROUGH COUNCIL,226676,Balance Sheet,Apprenticeship Levy,18/05/21,HMRC CUMBERNAULD,"3,277.00",May-21
EREWASH BOROUGH COUNCIL,226437,Balance Sheet,Payroll Collection A/c - Income Tax,05/05/21,HMRC CUMBERNAULD,362.60,May-21
EREWASH BOROUGH COUNCIL,226676,Balance Sheet,Payroll Collection A/c - Statutory Maternity Pay,18/05/21,HMRC CUMBERNAULD,"-3,404.43",May-21
EREWASH BOROUGH COUNCIL,227420,Balance Sheet,Payroll Collection A/c - Income Tax,25/05/21,HMRC CUMBERNAULD,"28,942.70",May-21
EREWASH BOROUGH COUNCIL,226437,Balance Sheet,Payroll Collection A/c - National Insurance,05/05/21,HMRC CUMBERNAULD,435.38,May-21
EREWASH BOROUGH COUNCIL,227242,Balance Sheet,COVID 19 - Additional Restrictions Grant,25/05/21,HOOPERS (DERBY) LTD,"1,000.00",May-21
EREWASH BOROUGH COUNCIL,227273,Balance Sheet,COVID 19 - Additional Restrictions Grant,25/05/21,HORNSTONE ENGLAND,"1,000.00",May-21
EREWASH BOROUGH COUNCIL,226789,Balance Sheet,COVID 19 - Additional Restrictions Grant,20/05/21,HUNNY BEAUTY,"1,000.00",May-21
EREWASH BOROUGH COUNCIL,226939,Balance Sheet,COVID 19 - Additional Restrictions Grant,20/05/21,REDACTED PERSONAL DATA,500.00,May-21
EREWASH BOROUGH COUNCIL,227280,Balance Sheet,COVID 19 - Additional Restrictions Grant,25/05/21,IAN HANDS CONSULTANCY LTD,"2,500.00",May-21
EREWASH BOROUGH COUNCIL,226909,Balance Sheet,COVID 19 - Additional Restrictions Grant,20/05/21,IAN LORDS MINIBUS SERVICES,500.00,May-21
EREWASH BOROUGH COUNCIL,226927,Balance Sheet,COVID 19 - Additional Restrictions Grant,20/05/21,REDACTED PERSONAL DATA,500.00,May-21
EREWASH BOROUGH COUNCIL,226117,Registration of Electors,Software Licences,19/04/21,IDOX SOFTWARE LIMITED,"13,134.89",May-21
EREWASH BOROUGH COUNCIL,226920,Balance Sheet,COVID 19 - Additional Restrictions Grant,20/05/21,REDACTED PERSONAL DATA,500.00,May-21
EREWASH BOROUGH COUNCIL,226696,Balance Sheet,PCC - Election,18/05/21,ILKESTON CHURCH OF THE NAZARENE,350.00,May-21
EREWASH BOROUGH COUNCIL,227206,Balance Sheet,COVID 19 - Additional Restrictions Grant,25/05/21,ILKESTON LIFE COMMUNITY NEWSPAPER,"1,500.00",May-21
EREWASH BOROUGH COUNCIL,226422,Green Space,Materials/Consumables,15/04/21,ILKESTON PLY & DIY LTD,377.50,May-21
EREWASH BOROUGH COUNCIL,226422,Street Scene,Materials/Consumables,15/04/21,ILKESTON PLY & DIY LTD,200.00,May-21
EREWASH BOROUGH COUNCIL,226945,Balance Sheet,COVID 19 - Additional Restrictions Grant,20/05/21,ILKESTON RUGBY CLUB TRADING LTD,"8,000.00",May-21
EREWASH BOROUGH COUNCIL,226962,Balance Sheet,COVID 19 - Additional Restrictions Grant,20/05/21,ILKESTON RUTLAND CRICKET CLUB,"2,500.00",May-21
EREWASH BOROUGH COUNCIL,226957,Balance Sheet,COVID 19 - Additional Restrictions Grant,20/05/21,ILKESTON TYRE SERVICES,"2,500.00",May-21
EREWASH BOROUGH COUNCIL,227281,Balance Sheet,COVID 19 - Additional Restrictions Grant,25/05/21,ILSON FIGHT UNIT LIMITED,"2,500.00",May-21
EREWASH BOROUGH COUNCIL,227216,Balance Sheet,COVID 19 - Additional Restrictions Grant,25/05/21,IMPACT MARKETING AND PUBLICITY LTD,"12,000.00",May-21
EREWASH BOROUGH COUNCIL,226938,Balance Sheet,COVID 19 - Additional Restrictions Grant,20/05/21,REDACTED PERSONAL DATA,500.00,May-21
EREWASH BOROUGH COUNCIL,227259,Balance Sheet,COVID 19 - Additional Restrictions Grant,25/05/21,IN YOUR CORNER LIMITED,"2,500.00",May-21
EREWASH BOROUGH COUNCIL,227310,Balance Sheet,COVID 19 - Additional Restrictions Grant,25/05/21,INDEPENDENCE-DRIVING SCHOOL,"2,500.00",May-21
EREWASH BOROUGH COUNCIL,226446,Council Tax Collection,Fees Costs and Expenses,28/04/21,INFORM CPI LTD,800.00,May-21
EREWASH BOROUGH COUNCIL,226537,Cemeteries,Materials/Consumables,07/05/21,INSTITUTE OF CEMETERY & CREMATORIUM MANAGEMENT,310.00,May-21
EREWASH BOROUGH COUNCIL,226746,Car Parking,Contracted Services,22/04/21,INTERNATIONAL PARKING SYSTEMS UK LTD,"2,600.00",May-21
EREWASH BOROUGH COUNCIL,226776,Green Space,Materials/Consumables,18/05/21,INTRATEST LTD,"1,901.25",May-21
EREWASH BOROUGH COUNCIL,226883,Balance Sheet,COVID 19 - Additional Restrictions Grant,20/05/21,IRFAN HAMID T/A TAXI DRIVER,500.00,May-21
EREWASH BOROUGH COUNCIL,226879,Balance Sheet,COVID 19 - Additional Restrictions Grant,20/05/21,REDACTED PERSONAL DATA,500.00,May-21
EREWASH BOROUGH COUNCIL,226991,Balance Sheet,COVID 19 - Additional Restrictions Grant,20/05/21,ITS INTERN TRANSPORT SYSTEM (UK) LTD,"1,500.00",May-21
EREWASH BOROUGH COUNCIL,226477,Balance Sheet,Building Works,29/04/21,J TOMLINSON LIMITED,"101,574.21",May-21
EREWASH BOROUGH COUNCIL,227314,Balance Sheet,COVID 19 - Additional Restrictions Grant,25/05/21,J WILTON DRIVING INSTRUCTOR,"2,500.00",May-21
EREWASH BOROUGH COUNCIL,226997,Balance Sheet,COVID 19 - Additional Restrictions Grant,20/05/21,REDACTED PERSONAL DATA,"1,500.00",May-21
EREWASH BOROUGH COUNCIL,227315,Balance Sheet,COVID 19 - Additional Restrictions Grant,25/05/21,JANET TOMBLIN TRAVEL COUNSELLOR,"2,500.00",May-21
EREWASH BOROUGH COUNCIL,227335,Balance Sheet,COVID 19 - Additional Restrictions Grant,25/05/21,JAYSONS OPTICAL SERVICES,"2,500.00",May-21
EREWASH BOROUGH COUNCIL,226948,Balance Sheet,COVID 19 - Additional Restrictions Grant,20/05/21,JDB ENTERPRISES ILKESTON LTD,"4,000.00",May-21
EREWASH BOROUGH COUNCIL,227223,Balance Sheet,COVID 19 - Additional Restrictions Grant,25/05/21,JENSON PRESS PRINTERS,"8,000.00",May-21
EREWASH BOROUGH COUNCIL,227240,Balance Sheet,COVID 19 - Additional Restrictions Grant,25/05/21,JKBODYREPAIRS,"8,000.00",May-21
EREWASH BOROUGH COUNCIL,227324,Balance Sheet,COVID 19 - Additional Restrictions Grant,25/05/21,JMS PHOTOGRAPHY,"2,500.00",May-21
EREWASH BOROUGH COUNCIL,226889,Balance Sheet,COVID 19 - Additional Restrictions Grant,20/05/21,REDACTED PERSONAL DATA,500.00,May-21
EREWASH BOROUGH COUNCIL,226862,Balance Sheet,COVID 19 - Additional Restrictions Grant,20/05/21,REDACTED PERSONAL DATA,500.00,May-21
EREWASH BOROUGH COUNCIL,226580,Homelessness,Homelessness-Lease Properties,02/05/21,JP'S GROUNDS & MAINTENANCE SERVICES,780.00,May-21
EREWASH BOROUGH COUNCIL,227266,Balance Sheet,COVID 19 - Additional Restrictions Grant,25/05/21,JULIA FITNESS CLASSES,"2,500.00",May-21
EREWASH BOROUGH COUNCIL,226844,Balance Sheet,COVID 19 - Additional Restrictions Grant,20/05/21,JUS 2 CAB LIMITED,500.00,May-21
EREWASH BOROUGH COUNCIL,226847,Balance Sheet,COVID 19 - Additional Restrictions Grant,20/05/21,REDACTED PERSONAL DATA,500.00,May-21
EREWASH BOROUGH COUNCIL,226899,Balance Sheet,COVID 19 - Additional Restrictions Grant,20/05/21,REDACTED PERSONAL DATA,500.00,May-21
EREWASH BOROUGH COUNCIL,226882,Balance Sheet,COVID 19 - Additional Restrictions Grant,20/05/21,REDACTED PERSONAL DATA,500.00,May-21
EREWASH BOROUGH COUNCIL,226806,Balance Sheet,COVID 19 - Additional Restrictions Grant,20/05/21,KC AESTHETICS CLINIC,"1,000.00",May-21
EREWASH BOROUGH COUNCIL,226894,Balance Sheet,COVID 19 - Additional Restrictions Grant,20/05/21,REDACTED PERSONAL DATA,500.00,May-21
EREWASH BOROUGH COUNCIL,227354,Balance Sheet,COVID 19 - Additional Restrictions Grant,25/05/21,KELOMAY HAIR STYLING,"1,000.00",May-21
EREWASH BOROUGH COUNCIL,226993,Balance Sheet,COVID 19 - Additional Restrictions Grant,20/05/21,KENSINGTON CAR SALES LTD,"1,500.00",May-21
EREWASH BOROUGH COUNCIL,227294,Balance Sheet,COVID 19 - Additional Restrictions Grant,25/05/21,KEV JAMES DRIVER TRAINING LTD,"2,500.00",May-21
EREWASH BOROUGH COUNCIL,226872,Balance Sheet,COVID 19 - Additional Restrictions Grant,20/05/21,REDACTED PERSONAL DATA,500.00,May-21
EREWASH BOROUGH COUNCIL,226922,Balance Sheet,COVID 19 - Additional Restrictions Grant,20/05/21,KEVS QUALITY BAGS,500.00,May-21
EREWASH BOROUGH COUNCIL,226918,Balance Sheet,COVID 19 - Additional Restrictions Grant,20/05/21,REDACTED PERSONAL DATA,500.00,May-21
EREWASH BOROUGH COUNCIL,226604,Balance Sheet,Childcare Salary Sacrifice-Kiddie Vouchers,05/05/21,KIDDIVOUCHERS LTD,904.96,May-21
EREWASH BOROUGH COUNCIL,227260,Balance Sheet,COVID 19 - Additional Restrictions Grant,25/05/21,KIMBERLEY SIGNS LIMITED,"2,500.00",May-21
EREWASH BOROUGH COUNCIL,227409,Car Parking,Contracted Services,30/04/21,KINGS ARMOURED SECURITY SERVICES,"1,552.95",May-21
EREWASH BOROUGH COUNCIL,226777,Front Line Support Services,Security,30/04/21,KINGS ARMOURED SECURITY SERVICES,471.40,May-21
EREWASH BOROUGH COUNCIL,226777,Cemeteries,Contracted Services,30/04/21,KINGS ARMOURED SECURITY SERVICES,52.95,May-21
EREWASH BOROUGH COUNCIL,227345,Balance Sheet,COVID 19 - Additional Restrictions Grant,25/05/21,REDACTED PERSONAL DATA,"1,500.00",May-21
EREWASH BOROUGH COUNCIL,227249,Balance Sheet,COVID 19 - Additional Restrictions Grant,25/05/21,KITCHEN PREP UK LIMITED,"8,000.00",May-21
EREWASH BOROUGH COUNCIL,227319,Balance Sheet,COVID 19 - Additional Restrictions Grant,25/05/21,KJ MASSEY ACCOUNTANT,"2,500.00",May-21
EREWASH BOROUGH COUNCIL,226961,Balance Sheet,COVID 19 - Additional Restrictions Grant,20/05/21,KNIGHT TRAVEL LTD,"2,500.00",May-21
EREWASH BOROUGH COUNCIL,226826,Balance Sheet,COVID 19 - Additional Restrictions Grant,20/05/21,KOOL DRIVER TRAINING,"1,000.00",May-21
EREWASH BOROUGH COUNCIL,226996,Balance Sheet,COVID 19 - Additional Restrictions Grant,20/05/21,KUSTOM RIMZ UK LTD,"1,500.00",May-21
EREWASH BOROUGH COUNCIL,226316,ICT Support Services,Equipment Leasing Charge,14/04/21,KYOCERA DOCUMENT SOLUTIONS (UK) LTD,"1,734.82",May-21
EREWASH BOROUGH COUNCIL,226814,Balance Sheet,COVID 19 - Additional Restrictions Grant,20/05/21,L A B BY LAUREN,"1,000.00",May-21
EREWASH BOROUGH COUNCIL,226419,Street Scene,Contracted Services,26/04/21,LANGUARD LTD,"3,572.79",May-21
EREWASH BOROUGH COUNCIL,226558,Legal Services,"Stamp Duty,Search and Legal Fees",06/05/21,LAWYERS IN LOCAL GOVERNMENT,270.00,May-21
EREWASH BOROUGH COUNCIL,226822,Balance Sheet,COVID 19 - Additional Restrictions Grant,20/05/21,REDACTED PERSONAL DATA,"1,000.00",May-21
EREWASH BOROUGH COUNCIL,226871,Balance Sheet,COVID 19 - Additional Restrictions Grant,20/05/21,REDACTED PERSONAL DATA,500.00,May-21
EREWASH BOROUGH COUNCIL,226837,Balance Sheet,COVID 19 - Additional Restrictions Grant,20/05/21,LEEN VALLEY PLANTS,500.00,May-21
EREWASH BOROUGH COUNCIL,227253,Balance Sheet,COVID 19 - Additional Restrictions Grant,25/05/21,LEEROYS KEBAB HOUSE,"2,667.00",May-21
EREWASH BOROUGH COUNCIL,226053,Green Space,Contracted Services,16/04/21,LEGACY LEISURE LTD,"1,268.00",May-21
EREWASH BOROUGH COUNCIL,226538,Balance Sheet,PCC - Election,10/05/21,LEGACY LEISURE LTD,"5,268.90",May-21
EREWASH BOROUGH COUNCIL,226398,Leisure Contract,Project Grants,24/03/21,LEISURE NET SOLUTIONS LTD,"1,542.00",May-21
EREWASH BOROUGH COUNCIL,226557,Legal Services,Reference Literature and Publications,30/04/21,LEXISNEXIS BUTTERWORTHS,477.00,May-21
EREWASH BOROUGH COUNCIL,226450,Communications,General Publicity and Promotion,23/04/21,LG COMMUNICATIONS,250.00,May-21
EREWASH BOROUGH COUNCIL,226955,Balance Sheet,COVID 19 - Additional Restrictions Grant,20/05/21,LIEVENS FURNITURE LIMITED,"2,667.00",May-21
EREWASH BOROUGH COUNCIL,226785,Balance Sheet,COVID 19 - Additional Restrictions Grant,20/05/21,LIFE OF A BEAUTY GIRL MAKE UP ARTIST (SAM CAHILL),"1,000.00",May-21
EREWASH BOROUGH COUNCIL,227252,Balance Sheet,COVID 19 - Additional Restrictions Grant,25/05/21,LIFESTYLE HOME SOLUTIONS LIMITED,"4,000.00",May-21
EREWASH BOROUGH COUNCIL,227333,Balance Sheet,COVID 19 - Additional Restrictions Grant,25/05/21,LIFESTYLE1.COM LTD,"2,500.00",May-21
EREWASH BOROUGH COUNCIL,227202,Balance Sheet,COVID 19 - Additional Restrictions Grant,25/05/21,LITTLE EATON PLAY SCHOOL,"2,667.00",May-21
EREWASH BOROUGH COUNCIL,226699,Balance Sheet,PCC - Election,18/05/21,LITTLE EATON VILLAGE HALL,258.00,May-21
EREWASH BOROUGH COUNCIL,226725,Balance Sheet,COVID 19 - Additional Restrictions Grant,18/05/21,LITTLE ELF'S KITCHEN,"1,964.00",May-21
EREWASH BOROUGH COUNCIL,227318,Balance Sheet,COVID 19 - Additional Restrictions Grant,25/05/21,LITTLE LAS VEGAS CASINO HIRE,"2,500.00",May-21
EREWASH BOROUGH COUNCIL,227265,Balance Sheet,COVID 19 - Additional Restrictions Grant,25/05/21,LITTLE WOLF ENTERTAINMENT,"2,500.00",May-21
EREWASH BOROUGH COUNCIL,226919,Balance Sheet,COVID 19 - Additional Restrictions Grant,20/05/21,LJB JEWELLERY,500.00,May-21
EREWASH BOROUGH COUNCIL,227117,Treasury Management and Bank Charges,Lloyds BACS Services,10/05/21,LLOYDS BANK,532.90,May-21
EREWASH BOROUGH COUNCIL,227117,Treasury Management and Bank Charges,Unpaid Cheque Fees,10/05/21,LLOYDS BANK,141.03,May-21
EREWASH BOROUGH COUNCIL,227117,Treasury Management and Bank Charges,Lloyds Bank Charges for Debits and Credits,10/05/21,LLOYDS BANK,182.05,May-21
EREWASH BOROUGH COUNCIL,227287,Balance Sheet,COVID 19 - Additional Restrictions Grant,25/05/21,LN BROWN T/A INSPIRATTI,"2,500.00",May-21
EREWASH BOROUGH COUNCIL,226581,Homelessness,Computer Software,31/03/21,LOCATA (HOUSING SERVICES) LTD,"3,750.00",May-21
EREWASH BOROUGH COUNCIL,226628,Dog Control,Tyres,30/04/21,LODGE TYRE COMPANY LTD,97.50,May-21
EREWASH BOROUGH COUNCIL,226628,Green Space,Tyres,30/04/21,LODGE TYRE COMPANY LTD,304.50,May-21
EREWASH BOROUGH COUNCIL,226628,Household/Residual Waste Collection,Tyres,30/04/21,LODGE TYRE COMPANY LTD,"3,032.66",May-21
EREWASH BOROUGH COUNCIL,226628,Street Scene,Tyres,30/04/21,LODGE TYRE COMPANY LTD,247.20,May-21
EREWASH BOROUGH COUNCIL,227209,Balance Sheet,COVID 19 - Additional Restrictions Grant,25/05/21,LOVE MY LEAD,"1,000.00",May-21
EREWASH BOROUGH COUNCIL,226787,Balance Sheet,COVID 19 - Additional Restrictions Grant,20/05/21,LYNDSEY MURRAY HAIR,"1,000.00",May-21
EREWASH BOROUGH COUNCIL,226654,Green Space,Materials/Consumables,14/05/21,LYRECO UK LTD,328.74,May-21
EREWASH BOROUGH COUNCIL,227343,Balance Sheet,COVID 19 - Additional Restrictions Grant,25/05/21,M & L ENGRAVING,"1,500.00",May-21
EREWASH BOROUGH COUNCIL,227268,Balance Sheet,COVID 19 - Additional Restrictions Grant,25/05/21,M&D AESTHETICS,"2,500.00",May-21
EREWASH BOROUGH COUNCIL,226756,Corporate Health and Safety,Fire Maintenance,11/02/21,MACDONALD MARTIN LTD,243.92,May-21
EREWASH BOROUGH COUNCIL,226753,Corporate Health and Safety,Fire Maintenance,11/02/21,MACDONALD MARTIN LTD,490.62,May-21
EREWASH BOROUGH COUNCIL,226754,Corporate Health and Safety,Fire Maintenance,11/02/21,MACDONALD MARTIN LTD,277.60,May-21
EREWASH BOROUGH COUNCIL,227389,Balance Sheet,ICT Works,23/05/21,MACILDOWIE RECRUITMENT EXPERTISE,"1,288.79",May-21
EREWASH BOROUGH COUNCIL,226737,Balance Sheet,ICT Works,16/05/21,MACILDOWIE RECRUITMENT EXPERTISE,785.22,May-21
EREWASH BOROUGH COUNCIL,226448,Balance Sheet,ICT Works,02/05/21,MACILDOWIE RECRUITMENT EXPERTISE,"1,254.65",May-21
EREWASH BOROUGH COUNCIL,226298,Balance Sheet,ICT Works,25/04/21,MACILDOWIE RECRUITMENT EXPERTISE,"1,263.18",May-21
EREWASH BOROUGH COUNCIL,226532,Balance Sheet,ICT Works,09/05/21,MACILDOWIE RECRUITMENT EXPERTISE,"1,032.74",May-21
EREWASH BOROUGH COUNCIL,226886,Balance Sheet,COVID 19 - Additional Restrictions Grant,20/05/21,REDACTED PERSONAL DATA,500.00,May-21
EREWASH BOROUGH COUNCIL,226750,Kerbside Dry Recycling Collection,Protective Clothing,26/04/21,MAIN MAN SUPPLIES LTD,807.44,May-21
EREWASH BOROUGH COUNCIL,226750,Household/Residual Waste Collection,Protective Clothing,26/04/21,MAIN MAN SUPPLIES LTD,807.44,May-21
EREWASH BOROUGH COUNCIL,226893,Balance Sheet,COVID 19 - Additional Restrictions Grant,20/05/21,REDACTED PERSONAL DATA,500.00,May-21
EREWASH BOROUGH COUNCIL,226867,Balance Sheet,COVID 19 - Additional Restrictions Grant,20/05/21,REDACTED PERSONAL DATA,500.00,May-21
EREWASH BOROUGH COUNCIL,226722,Balance Sheet,COVID 19 - Additional Restrictions Grant,18/05/21,REDACTED PERSONAL DATA,"1,964.00",May-21
EREWASH BOROUGH COUNCIL,226865,Balance Sheet,COVID 19 - Additional Restrictions Grant,20/05/21,REDACTED PERSONAL DATA,500.00,May-21
EREWASH BOROUGH COUNCIL,226154,Household/Residual Waste Collection,Protective Clothing,13/04/21,MARK DOUGLAS INDUSTRIAL SUPPLIES LTD,219.00,May-21
EREWASH BOROUGH COUNCIL,226596,Insurances - (Corporate matters only),Insurance - General,04/02/21,MARSH LTD,709.57,May-21
EREWASH BOROUGH COUNCIL,227101,Council Tax Collection,Fees Costs and Expenses,28/02/21,MARSTON HOLDINGS LIMITED,0.00,May-21
EREWASH BOROUGH COUNCIL,227098,Council Tax Collection,Fees Costs and Expenses,30/09/20,MARSTON HOLDINGS LIMITED,0.00,May-21
EREWASH BOROUGH COUNCIL,226663,Council Tax Collection,Fees Costs and Expenses,30/04/21,MARSTON HOLDINGS LIMITED,0.00,May-21
EREWASH BOROUGH COUNCIL,227099,Council Tax Collection,Fees Costs and Expenses,30/11/20,MARSTON HOLDINGS LIMITED,0.00,May-21
EREWASH BOROUGH COUNCIL,227100,Council Tax Collection,Fees Costs and Expenses,01/02/21,MARSTON HOLDINGS LIMITED,0.00,May-21
EREWASH BOROUGH COUNCIL,227138,Cemeteries,Contracted Services,01/05/21,MASTERNAUT (UK) LTD,219.85,May-21
EREWASH BOROUGH COUNCIL,226748,Sports Development Coaching & Courses,Materials/Consumables,14/05/21,MAVERICK CUSTOMWEAR LTD,287.92,May-21
EREWASH BOROUGH COUNCIL,226467,Allotments,Reactive Maintenance,28/04/21,MDB PLUMBING (NOTTM) LTD,479.84,May-21
EREWASH BOROUGH COUNCIL,227185,Parks Changing Rooms,PPM Mechanical and Equipment,12/05/21,MDB PLUMBING (NOTTM) LTD,508.73,May-21
EREWASH BOROUGH COUNCIL,226028,Occupational Health and Welfare,Occupational Health Service,08/04/21,MEDIGOLD HEALTH CONSULTANCY LIMITED,"1,080.00",May-21
EREWASH BOROUGH COUNCIL,227359,Occupational Health and Welfare,Occupational Health Service,12/05/21,MEDIGOLD HEALTH CONSULTANCY LIMITED,939.00,May-21
EREWASH BOROUGH COUNCIL,226967,Balance Sheet,COVID 19 - Additional Restrictions Grant,20/05/21,MEL CRAFF DRIVING SCHOOL,"2,500.00",May-21
EREWASH BOROUGH COUNCIL,227011,Car Parking,Contracted Services,30/04/21,METRIC GROUP LTD,"2,447.93",May-21
EREWASH BOROUGH COUNCIL,226747,Household/Residual Waste Collection,Bins,14/05/21,MGB PLASTICS LTD,225.00,May-21
EREWASH BOROUGH COUNCIL,226747,Kerbside Dry Recycling Collection,Bins,14/05/21,MGB PLASTICS LTD,225.00,May-21
EREWASH BOROUGH COUNCIL,227438,Balance Sheet,NNDR Collection Fund Control Account,04/05/21,MHCLG,"1,099,103.00",May-21
EREWASH BOROUGH COUNCIL,227439,Balance Sheet,NNDR Collection Fund Control Account,19/05/21,MHCLG,"-507,610.00",May-21
EREWASH BOROUGH COUNCIL,227438,Balance Sheet,NNDR Collection Fund Control Account,04/05/21,MHCLG,"-507,611.00",May-21
EREWASH BOROUGH COUNCIL,227439,Non Ring Fenced Government Grants,Revenue Support Grant,19/05/21,MHCLG,"-9,545.00",May-21
EREWASH BOROUGH COUNCIL,227439,Balance Sheet,NNDR Collection Fund Control Account,19/05/21,MHCLG,"1,099,103.00",May-21
EREWASH BOROUGH COUNCIL,227439,Balance Sheet,NNDR Collection Fund Control Account,19/05/21,MHCLG,"-4,065.00",May-21
EREWASH BOROUGH COUNCIL,227438,Balance Sheet,NNDR Collection Fund Control Account,04/05/21,MHCLG,"-4,065.00",May-21
EREWASH BOROUGH COUNCIL,226891,Balance Sheet,COVID 19 - Additional Restrictions Grant,20/05/21,REDACTED PERSONAL DATA,500.00,May-21
EREWASH BOROUGH COUNCIL,226823,Balance Sheet,COVID 19 - Additional Restrictions Grant,20/05/21,REDACTED PERSONAL DATA,"1,000.00",May-21
EREWASH BOROUGH COUNCIL,227282,Balance Sheet,COVID 19 - Additional Restrictions Grant,25/05/21,MIDLAND MEDIA SERVICES LTD,"2,500.00",May-21
EREWASH BOROUGH COUNCIL,226958,Balance Sheet,COVID 19 - Additional Restrictions Grant,20/05/21,MILLIES RESTAURANT,"2,500.00",May-21
EREWASH BOROUGH COUNCIL,226959,Balance Sheet,COVID 19 - Additional Restrictions Grant,20/05/21,MILLIES THE COFFEE SHOP,"2,500.00",May-21
EREWASH BOROUGH COUNCIL,227351,Balance Sheet,COVID 19 - Additional Restrictions Grant,25/05/21,MILLS JONES NAILS AND BEAUTY,"1,000.00",May-21
EREWASH BOROUGH COUNCIL,227147,VAT - (Corporate matters only),Consultants Fees,04/05/21,MISCHON DE REYA,"1,700.00",May-21
EREWASH BOROUGH COUNCIL,226964,Balance Sheet,COVID 19 - Additional Restrictions Grant,20/05/21,MODERN MOTORCYCLES,"1,500.00",May-21
EREWASH BOROUGH COUNCIL,226852,Balance Sheet,COVID 19 - Additional Restrictions Grant,20/05/21,REDACTED PERSONAL DATA,500.00,May-21
EREWASH BOROUGH COUNCIL,226875,Balance Sheet,COVID 19 - Additional Restrictions Grant,20/05/21,REDACTED PERSONAL DATA,500.00,May-21
EREWASH BOROUGH COUNCIL,226929,Balance Sheet,COVID 19 - Additional Restrictions Grant,20/05/21,REDACTED PERSONAL DATA,500.00,May-21
EREWASH BOROUGH COUNCIL,226928,Balance Sheet,COVID 19 - Additional Restrictions Grant,20/05/21,REDACTED PERSONAL DATA,500.00,May-21
EREWASH BOROUGH COUNCIL,226840,Balance Sheet,COVID 19 - Additional Restrictions Grant,20/05/21,REDACTED PERSONAL DATA,500.00,May-21
EREWASH BOROUGH COUNCIL,226864,Balance Sheet,COVID 19 - Additional Restrictions Grant,20/05/21,REDACTED PERSONAL DATA,500.00,May-21
EREWASH BOROUGH COUNCIL,226846,Balance Sheet,COVID 19 - Additional Restrictions Grant,20/05/21,REDACTED PERSONAL DATA,500.00,May-21
EREWASH BOROUGH COUNCIL,227271,Balance Sheet,COVID 19 - Additional Restrictions Grant,25/05/21,MOJO CYCLES,"2,500.00",May-21
EREWASH BOROUGH COUNCIL,226966,Balance Sheet,COVID 19 - Additional Restrictions Grant,20/05/21,MOMMAS SOUL FOOD KITCHEN,"1,500.00",May-21
EREWASH BOROUGH COUNCIL,226976,Balance Sheet,COVID 19 - Additional Restrictions Grant,20/05/21,MOORLEYS PRINT & PUBLISHING LIMITED,"2,667.00",May-21
EREWASH BOROUGH COUNCIL,227283,Balance Sheet,COVID 19 - Additional Restrictions Grant,25/05/21,MOTORVATE DRIVING SCHOOL,"2,500.00",May-21
EREWASH BOROUGH COUNCIL,226917,Balance Sheet,COVID 19 - Additional Restrictions Grant,20/05/21,REDACTED PERSONAL DATA,500.00,May-21
EREWASH BOROUGH COUNCIL,226885,Balance Sheet,COVID 19 - Additional Restrictions Grant,20/05/21,REDACTED PERSONAL DATA,500.00,May-21
EREWASH BOROUGH COUNCIL,226575,Homelessness,Temporary Accommodation,16/03/21,REDACTED PERSONAL DATA,330.00,May-21
EREWASH BOROUGH COUNCIL,226579,Homelessness,Temporary Accommodation,13/01/21,REDACTED PERSONAL DATA,360.00,May-21
EREWASH BOROUGH COUNCIL,226565,Homelessness,Temporary Accommodation,04/02/21,REDACTED PERSONAL DATA,540.00,May-21
EREWASH BOROUGH COUNCIL,226573,Homelessness,Temporary Accommodation,05/04/21,REDACTED PERSONAL DATA,540.00,May-21
EREWASH BOROUGH COUNCIL,226572,Homelessness,Temporary Accommodation,22/01/21,REDACTED PERSONAL DATA,510.00,May-21
EREWASH BOROUGH COUNCIL,226587,Homelessness,Temporary Accommodation,04/03/21,REDACTED PERSONAL DATA,390.00,May-21
EREWASH BOROUGH COUNCIL,226576,Homelessness,Temporary Accommodation,08/01/21,REDACTED PERSONAL DATA,210.00,May-21
EREWASH BOROUGH COUNCIL,226579,Homelessness,Temporary Accommodation,13/01/21,REDACTED PERSONAL DATA,210.00,May-21
EREWASH BOROUGH COUNCIL,226575,Homelessness,Temporary Accommodation,16/03/21,REDACTED PERSONAL DATA,150.00,May-21
EREWASH BOROUGH COUNCIL,226589,Homelessness,Temporary Accommodation,05/02/21,REDACTED PERSONAL DATA,510.00,May-21
EREWASH BOROUGH COUNCIL,226572,Homelessness,Temporary Accommodation,22/01/21,REDACTED PERSONAL DATA,210.00,May-21
EREWASH BOROUGH COUNCIL,226576,Homelessness,Temporary Accommodation,08/01/21,REDACTED PERSONAL DATA,510.00,May-21
EREWASH BOROUGH COUNCIL,226577,Homelessness,Temporary Accommodation,17/02/21,REDACTED PERSONAL DATA,60.00,May-21
EREWASH BOROUGH COUNCIL,226566,Homelessness,Temporary Accommodation,01/03/21,REDACTED PERSONAL DATA,930.00,May-21
EREWASH BOROUGH COUNCIL,226565,Homelessness,Temporary Accommodation,04/02/21,REDACTED PERSONAL DATA,210.00,May-21
EREWASH BOROUGH COUNCIL,226577,Homelessness,Temporary Accommodation,17/02/21,REDACTED PERSONAL DATA,210.00,May-21
EREWASH BOROUGH COUNCIL,226589,Homelessness,Temporary Accommodation,05/02/21,REDACTED PERSONAL DATA,210.00,May-21
EREWASH BOROUGH COUNCIL,226896,Balance Sheet,COVID 19 - Additional Restrictions Grant,20/05/21,REDACTED PERSONAL DATA,500.00,May-21
EREWASH BOROUGH COUNCIL,226836,Balance Sheet,COVID 19 - Additional Restrictions Grant,20/05/21,REDACTED PERSONAL DATA,500.00,May-21
EREWASH BOROUGH COUNCIL,226724,Balance Sheet,COVID 19 - Additional Restrictions Grant,18/05/21,MRS B'S CATERING SERVICES LTD,"2,750.00",May-21
EREWASH BOROUGH COUNCIL,226778,ICT Support Services,Security,19/05/21,MTI TECHNOLOGY LTD,"8,580.00",May-21
EREWASH BOROUGH COUNCIL,226914,Balance Sheet,COVID 19 - Additional Restrictions Grant,20/05/21,REDACTED PERSONAL DATA,500.00,May-21
EREWASH BOROUGH COUNCIL,226848,Balance Sheet,COVID 19 - Additional Restrictions Grant,20/05/21,REDACTED PERSONAL DATA,500.00,May-21
EREWASH BOROUGH COUNCIL,227414,Insurances,Uninsured Risks,23/02/21,MUNICIPAL MUTUAL INSURANCE LTD,592.97,May-21
EREWASH BOROUGH COUNCIL,226529,Insurances,Uninsured Risks,31/01/21,MUNICIPAL MUTUAL INSURANCE LTD,592.97,May-21
EREWASH BOROUGH COUNCIL,226813,Balance Sheet,COVID 19 - Additional Restrictions Grant,20/05/21,MUSCLE MASSEUR LTD,"1,000.00",May-21
EREWASH BOROUGH COUNCIL,226555,Balance Sheet,COVID 19 - Additional Restrictions Grant,11/05/21,MUSCLE MASSEUR LTD,"3,464.00",May-21
EREWASH BOROUGH COUNCIL,226877,Balance Sheet,COVID 19 - Additional Restrictions Grant,20/05/21,REDACTED PERSONAL DATA,500.00,May-21
EREWASH BOROUGH COUNCIL,226838,Balance Sheet,COVID 19 - Additional Restrictions Grant,20/05/21,REDACTED PERSONAL DATA,500.00,May-21
EREWASH BOROUGH COUNCIL,226881,Balance Sheet,COVID 19 - Additional Restrictions Grant,20/05/21,REDACTED PERSONAL DATA,500.00,May-21
EREWASH BOROUGH COUNCIL,227312,Balance Sheet,COVID 19 - Additional Restrictions Grant,25/05/21,REDACTED PERSONAL DATA,"2,500.00",May-21
EREWASH BOROUGH COUNCIL,226731,Democratic Representation,Subscription - National Assoc of Councillors,17/05/21,NATIONAL ASSOCIATIONS OF COUNCILLORS,752.00,May-21
EREWASH BOROUGH COUNCIL,227081,Household/Residual Waste Collection,Training,05/05/21,NATIONAL COMPLIANCE TRAINING LIMITED,233.76,May-21
EREWASH BOROUGH COUNCIL,227230,Balance Sheet,COVID 19 - Additional Restrictions Grant,25/05/21,NEXUS EXHIBITIONS LTD,"8,000.00",May-21
EREWASH BOROUGH COUNCIL,226054,Street Scene,Contracted Services,16/04/21,NIBRA SIGNS LTD,73.77,May-21
EREWASH BOROUGH COUNCIL,226054,Street Scene,Street Furniture,16/04/21,NIBRA SIGNS LTD,"1,876.65",May-21
EREWASH BOROUGH COUNCIL,227296,Balance Sheet,COVID 19 - Additional Restrictions Grant,25/05/21,NIC JONES AGILITY,"2,500.00",May-21
EREWASH BOROUGH COUNCIL,226968,Balance Sheet,COVID 19 - Additional Restrictions Grant,20/05/21,NICK GILL MORTGAGES LTD,"1,500.00",May-21
EREWASH BOROUGH COUNCIL,227256,Balance Sheet,COVID 19 - Additional Restrictions Grant,25/05/21,REDACTED PERSONAL DATA,"2,500.00",May-21
EREWASH BOROUGH COUNCIL,227352,Balance Sheet,COVID 19 - Additional Restrictions Grant,25/05/21,NICOLA SUMPTER HAIR AND MAKE UP,"1,000.00",May-21
EREWASH BOROUGH COUNCIL,226820,Balance Sheet,COVID 19 - Additional Restrictions Grant,20/05/21,NIKKI'S BEAUTY,"1,000.00",May-21
EREWASH BOROUGH COUNCIL,227251,Balance Sheet,COVID 19 - Additional Restrictions Grant,25/05/21,NMT HOSPITALITY LTD,"2,500.00",May-21
EREWASH BOROUGH COUNCIL,227214,Balance Sheet,COVID 19 - Additional Restrictions Grant,25/05/21,NORTON PLASTICS LTD,"4,000.00",May-21
EREWASH BOROUGH COUNCIL,226612,Training - Personnel Costs Only,Health and Safety Training,06/05/21,NOTTINGHAM CITY COUNCIL..,575.00,May-21
EREWASH BOROUGH COUNCIL,227394,ICT Support Services,Subscriptions,14/05/21,NOTTINGHAM CITY COUNCIL..,306.00,May-21
EREWASH BOROUGH COUNCIL,226760,Homelessness,Temporary Accommodation,02/05/21,NOVOTEL NOTTINGHAM,"1,285.80",May-21
EREWASH BOROUGH COUNCIL,227048,Homelessness,Temporary Accommodation,05/05/21,NOVOTEL NOTTINGHAM,342.88,May-21
EREWASH BOROUGH COUNCIL,227041,Homelessness,Temporary Accommodation,02/05/21,NOVOTEL NOTTINGHAM,385.74,May-21
EREWASH BOROUGH COUNCIL,227084,Homelessness,Temporary Accommodation,28/04/21,NOVOTEL NOTTINGHAM,"1,157.22",May-21
EREWASH BOROUGH COUNCIL,226764,Homelessness,Temporary Accommodation,02/05/21,NOVOTEL NOTTINGHAM,"1,242.94",May-21
EREWASH BOROUGH COUNCIL,226762,Homelessness,Temporary Accommodation,02/05/21,NOVOTEL NOTTINGHAM,"1,285.80",May-21
EREWASH BOROUGH COUNCIL,226761,Homelessness,Temporary Accommodation,02/05/21,NOVOTEL NOTTINGHAM,"1,285.80",May-21
EREWASH BOROUGH COUNCIL,227045,Homelessness,Temporary Accommodation,23/04/21,NOVOTEL NOTTINGHAM,942.92,May-21
EREWASH BOROUGH COUNCIL,226763,Homelessness,Temporary Accommodation,02/05/21,NOVOTEL NOTTINGHAM,"1,285.80",May-21
EREWASH BOROUGH COUNCIL,227043,Homelessness,Temporary Accommodation,02/05/21,NOVOTEL NOTTINGHAM,385.74,May-21
EREWASH BOROUGH COUNCIL,227052,Homelessness,Temporary Accommodation,02/05/21,NOVOTEL NOTTINGHAM,385.74,May-21
EREWASH BOROUGH COUNCIL,227042,Homelessness,Temporary Accommodation,02/05/21,NOVOTEL NOTTINGHAM,514.32,May-21
EREWASH BOROUGH COUNCIL,227044,Homelessness,Temporary Accommodation,02/05/21,NOVOTEL NOTTINGHAM,"1,285.80",May-21
EREWASH BOROUGH COUNCIL,227046,Homelessness,Temporary Accommodation,05/05/21,NOVOTEL NOTTINGHAM,814.34,May-21
EREWASH BOROUGH COUNCIL,227054,Homelessness,Temporary Accommodation,05/05/21,NOVOTEL NOTTINGHAM,514.32,May-21
EREWASH BOROUGH COUNCIL,227277,Balance Sheet,COVID 19 - Additional Restrictions Grant,25/05/21,NU-DRIVE,"2,500.00",May-21
EREWASH BOROUGH COUNCIL,226700,Balance Sheet,PCC - Election,18/05/21,OASIS CHRISTIAN  CENTRE,400.00,May-21
EREWASH BOROUGH COUNCIL,227197,Balance Sheet,COVID 19 - Additional Restrictions Grant,25/05/21,OCKBROOK BOARDING CATTERY,"2,667.00",May-21
EREWASH BOROUGH COUNCIL,227227,Balance Sheet,COVID 19 - Additional Restrictions Grant,25/05/21,ODD EXHIBITIONS LTD,"8,000.00",May-21
EREWASH BOROUGH COUNCIL,226954,Balance Sheet,COVID 19 - Additional Restrictions Grant,20/05/21,ONESTOPCARSHOPUK LIMITED,"2,667.00",May-21
EREWASH BOROUGH COUNCIL,226969,Balance Sheet,COVID 19 - Additional Restrictions Grant,20/05/21,ONESTOPCARSHOPUK LIMITED,"1,500.00",May-21
EREWASH BOROUGH COUNCIL,226564,Urban Renewal,Agency Staff,14/04/21,OSBORNE RICHARDSON,"1,045.50",May-21
EREWASH BOROUGH COUNCIL,227275,Balance Sheet,COVID 19 - Additional Restrictions Grant,25/05/21,OUD LTD,"2,500.00",May-21
EREWASH BOROUGH COUNCIL,226897,Balance Sheet,COVID 19 - Additional Restrictions Grant,20/05/21,REDACTED PERSONAL DATA,500.00,May-21
EREWASH BOROUGH COUNCIL,226132,Car Parking,Contracted Services,12/04/21,PAPERWORK UK LTD,630.00,May-21
EREWASH BOROUGH COUNCIL,227201,Balance Sheet,COVID 19 - Additional Restrictions Grant,25/05/21,PARKSIDE HIGH CIC,"2,667.00",May-21
EREWASH BOROUGH COUNCIL,226702,Balance Sheet,PCC - Election,18/05/21,PARKSIDE HIGH CIC,300.00,May-21
EREWASH BOROUGH COUNCIL,227000,Leisure Contract,Contracted Services,20/05/21,PARKWOOD LEISURE LTD,"26,831.98",May-21
EREWASH BOROUGH COUNCIL,227109,Balance Sheet,EBC Fit for Work Scheme,24/05/21,PARKWOOD LEISURE LTD,567.00,May-21
EREWASH BOROUGH COUNCIL,226615,Leisure Contract,Contracted Services,12/05/21,PARKWOOD LEISURE LTD,"21,065.00",May-21
EREWASH BOROUGH COUNCIL,226664,Household/Residual Waste Collection,Repairs and Maintenance,07/05/21,PARTIC MOTOR SPARES LTD,233.86,May-21
EREWASH BOROUGH COUNCIL,226665,Household/Residual Waste Collection,Repairs and Maintenance,04/05/21,PARTIC MOTOR SPARES LTD,525.01,May-21
EREWASH BOROUGH COUNCIL,227317,Balance Sheet,COVID 19 - Additional Restrictions Grant,25/05/21,REDACTED PERSONAL DATA,"2,500.00",May-21
EREWASH BOROUGH COUNCIL,227337,Balance Sheet,COVID 19 - Additional Restrictions Grant,25/05/21,REDACTED PERSONAL DATA,"1,500.00",May-21
EREWASH BOROUGH COUNCIL,227250,Balance Sheet,COVID 19 - Additional Restrictions Grant,25/05/21,REDACTED PERSONAL DATA,"2,500.00",May-21
EREWASH BOROUGH COUNCIL,227257,Balance Sheet,COVID 19 - Additional Restrictions Grant,25/05/21,PCC OF ST JOHNS CHURCH,"2,500.00",May-21
EREWASH BOROUGH COUNCIL,226624,Balance Sheet,PCC - Election,10/05/21,PEAGREEN TOILETS LTD,"1,100.00",May-21
EREWASH BOROUGH COUNCIL,226733,Balance Sheet,PCC - Election,11/05/21,PEEL ELECTRICAL LTD,"1,809.68",May-21
EREWASH BOROUGH COUNCIL,226226,Merlin Way Depot - Ilkeston,Repairs and Maintenance,12/04/21,PEEL ELECTRICAL LTD,208.56,May-21
EREWASH BOROUGH COUNCIL,227360,Merlin Way Depot - Ilkeston,Repairs and Maintenance,17/05/21,PEEL ELECTRICAL LTD,234.26,May-21
EREWASH BOROUGH COUNCIL,227361,Merlin Way Depot - Ilkeston,Repairs and Maintenance,17/05/21,PEEL ELECTRICAL LTD,370.42,May-21
EREWASH BOROUGH COUNCIL,226463,Shopmobility - Ilkeston,PPM Mechanical and Equipment,30/04/21,PEEL ELECTRICAL LTD,122.32,May-21
EREWASH BOROUGH COUNCIL,226463,Parks Changing Rooms,PPM Mechanical and Equipment,30/04/21,PEEL ELECTRICAL LTD,406.41,May-21
EREWASH BOROUGH COUNCIL,227366,Parks Changing Rooms,PPM Mechanical and Equipment,13/05/21,PEEL ELECTRICAL LTD,846.70,May-21
EREWASH BOROUGH COUNCIL,226662,Council Tax Collection,Fees Costs and Expenses,17/05/21,PENHAM EXCEL LIMITED,0.00,May-21
EREWASH BOROUGH COUNCIL,227292,Balance Sheet,COVID 19 - Additional Restrictions Grant,25/05/21,PENNARTON LTD,"2,500.00",May-21
EREWASH BOROUGH COUNCIL,226219,Green Space,Materials/Consumables,20/04/21,PENTLAND PLANTS LTD,"3,221.62",May-21
EREWASH BOROUGH COUNCIL,226443,Green Space,Materials/Consumables,27/04/21,PENTLAND PLANTS LTD,"2,349.27",May-21
EREWASH BOROUGH COUNCIL,226114,Green Space,Materials/Consumables,12/04/21,PENTLAND PLANTS LTD,416.84,May-21
EREWASH BOROUGH COUNCIL,226720,Balance Sheet,COVID 19 - Additional Restrictions Grant,18/05/21,REDACTED PERSONAL DATA,"3,464.00",May-21
EREWASH BOROUGH COUNCIL,226863,Balance Sheet,COVID 19 - Additional Restrictions Grant,20/05/21,REDACTED PERSONAL DATA,500.00,May-21
EREWASH BOROUGH COUNCIL,226965,Balance Sheet,COVID 19 - Additional Restrictions Grant,20/05/21,PETER'S DELI,"1,500.00",May-21
EREWASH BOROUGH COUNCIL,226703,Balance Sheet,PCC - Election,18/05/21,PETERSHAM HALL COMMUNITY ASSOCIATION,300.00,May-21
EREWASH BOROUGH COUNCIL,227204,Balance Sheet,COVID 19 - Additional Restrictions Grant,25/05/21,PETSTAY DERBY,"2,667.00",May-21
EREWASH BOROUGH COUNCIL,226727,Balance Sheet,COVID 19 - Additional Restrictions Grant,18/05/21,PHASE 11 ISLAND PROJECT,"1,964.00",May-21
EREWASH BOROUGH COUNCIL,226940,Balance Sheet,COVID 19 - Additional Restrictions Grant,20/05/21,REDACTED PERSONAL DATA,500.00,May-21
EREWASH BOROUGH COUNCIL,227186,Balance Sheet,ICT Software Licence Payment in Advance,17/05/21,PHOENIX SOFTWARE LTD,"3,185.00",May-21
EREWASH BOROUGH COUNCIL,226221,Balance Sheet,ICT Software Licence Payment in Advance,19/04/21,PHOENIX SOFTWARE LTD,"5,932.52",May-21
EREWASH BOROUGH COUNCIL,226780,Balance Sheet,ICT Software Licence Payment in Advance,18/05/21,PHOENIX SOFTWARE LTD,"56,697.08",May-21
EREWASH BOROUGH COUNCIL,227135,Balance Sheet,ICT Software Licence Payment in Advance,19/05/21,PHOENIX SOFTWARE LTD,"22,391.56",May-21
EREWASH BOROUGH COUNCIL,227014,Green Space,Materials/Consumables,20/05/21,PICTORIAL LTD,400.00,May-21
EREWASH BOROUGH COUNCIL,226525,Balance Sheet,PCC - Election,05/05/21,PICTORIAL LTD,327.76,May-21
EREWASH BOROUGH COUNCIL,227255,Balance Sheet,COVID 19 - Additional Restrictions Grant,25/05/21,PITBOSS BBQ LIMITED,"2,500.00",May-21
EREWASH BOROUGH COUNCIL,227348,Balance Sheet,COVID 19 - Additional Restrictions Grant,25/05/21,PKB ACCESSORIES,"1,500.00",May-21
EREWASH BOROUGH COUNCIL,227104,Community Safety,Analysts Fees,20/05/21,POLICE AND CRIME COMMISSIONER FOR DERBYSHIRE,"1,000.00",May-21
EREWASH BOROUGH COUNCIL,227346,Balance Sheet,COVID 19 - Additional Restrictions Grant,25/05/21,POP UP CORNER SHOP,"1,500.00",May-21
EREWASH BOROUGH COUNCIL,226625,Balance Sheet,PCC - Election,06/05/21,PORTAKABIN LTD,"1,947.20",May-21
EREWASH BOROUGH COUNCIL,226530,Development Control - Fee Earning,Planning Fees,11/05/21,PORTALPLANQUEST LTD,462.00,May-21
EREWASH BOROUGH COUNCIL,226904,Balance Sheet,COVID 19 - Additional Restrictions Grant,20/05/21,POSH CAR LTD,500.00,May-21
EREWASH BOROUGH COUNCIL,227244,Balance Sheet,COVID 19 - Additional Restrictions Grant,25/05/21,POWER BOX CREATIVE,"2,500.00",May-21
EREWASH BOROUGH COUNCIL,227221,Balance Sheet,COVID 19 - Additional Restrictions Grant,25/05/21,PRECISION FLOW SCREED LTD,"8,000.00",May-21
EREWASH BOROUGH COUNCIL,227196,Balance Sheet,COVID 19 - Additional Restrictions Grant,25/05/21,PREMIER HIRE & TAXI (SANDIACRE) LTD,"2,667.00",May-21
EREWASH BOROUGH COUNCIL,226986,Balance Sheet,COVID 19 - Additional Restrictions Grant,20/05/21,PRIORITY LIFT SERVICES LTD,"2,500.00",May-21
EREWASH BOROUGH COUNCIL,226595,Street Scene,Vehicle Sweeper Brushes,04/05/21,PROBRUSH,"1,054.49",May-21
EREWASH BOROUGH COUNCIL,227336,Balance Sheet,COVID 19 - Additional Restrictions Grant,25/05/21,PROJECT DELIVERY CONSULTING SERVICES LTD,"2,500.00",May-21
EREWASH BOROUGH COUNCIL,226425,Green Space,Materials/Consumables,27/04/21,PROTECTIVE WEAR SUPPLIES LTD,297.09,May-21
EREWASH BOROUGH COUNCIL,227142,Green Space,Materials/Consumables,17/05/21,PROTECTIVE WEAR SUPPLIES LTD,342.49,May-21
EREWASH BOROUGH COUNCIL,227039,Household/Residual Waste Collection,Protective Clothing,22/04/21,PROTECTIVE WEAR SUPPLIES LTD,495.24,May-21
EREWASH BOROUGH COUNCIL,226399,Green Space,Materials/Consumables,27/04/21,PROTECTIVE WEAR SUPPLIES LTD,591.46,May-21
EREWASH BOROUGH COUNCIL,226426,Green Space,Materials/Consumables,27/04/21,PROTECTIVE WEAR SUPPLIES LTD,266.40,May-21
EREWASH BOROUGH COUNCIL,227039,Kerbside Dry Recycling Collection,Protective Clothing,22/04/21,PROTECTIVE WEAR SUPPLIES LTD,495.24,May-21
EREWASH BOROUGH COUNCIL,226518,Economic Development,Contracted Services,01/05/21,PROXIMITY FUTURES T/A ELEPHANT WIFI,303.33,May-21
EREWASH BOROUGH COUNCIL,227002,Balance Sheet,Building Works,07/05/21,PROXIMITY FUTURES T/A ELEPHANT WIFI,"29,017.00",May-21
EREWASH BOROUGH COUNCIL,227105,Balance Sheet,Payroll Collection A/c - AVCS,24/05/21,PRUDENTIAL,"2,655.66",May-21
EREWASH BOROUGH COUNCIL,227238,Balance Sheet,COVID 19 - Additional Restrictions Grant,25/05/21,PURPLE GIRAFFE JOINERY & INSTALLATIONS LTD,"8,000.00",May-21
EREWASH BOROUGH COUNCIL,226868,Balance Sheet,COVID 19 - Additional Restrictions Grant,20/05/21,REDACTED PERSONAL DATA,500.00,May-21
EREWASH BOROUGH COUNCIL,227091,Household/Residual Waste Collection,Agency Staff,20/05/21,QUALITY SERVICE RECRUITMENT LTD,588.74,May-21
EREWASH BOROUGH COUNCIL,227091,Kerbside Dry Recycling Collection,Agency Staff,20/05/21,QUALITY SERVICE RECRUITMENT LTD,392.50,May-21
EREWASH BOROUGH COUNCIL,227059,Household/Residual Waste Collection,Agency Staff,22/04/21,QUALITY SERVICE RECRUITMENT LTD,634.82,May-21
EREWASH BOROUGH COUNCIL,227056,Household/Residual Waste Collection,Agency Staff,13/05/21,QUALITY SERVICE RECRUITMENT LTD,"1,126.75",May-21
EREWASH BOROUGH COUNCIL,227057,Household/Residual Waste Collection,Agency Staff,06/05/21,QUALITY SERVICE RECRUITMENT LTD,800.42,May-21
EREWASH BOROUGH COUNCIL,227058,Kerbside Dry Recycling Collection,Agency Staff,29/04/21,QUALITY SERVICE RECRUITMENT LTD,541.36,May-21
EREWASH BOROUGH COUNCIL,227056,Kerbside Dry Recycling Collection,Agency Staff,13/05/21,QUALITY SERVICE RECRUITMENT LTD,751.16,May-21
EREWASH BOROUGH COUNCIL,227057,Kerbside Dry Recycling Collection,Agency Staff,06/05/21,QUALITY SERVICE RECRUITMENT LTD,533.62,May-21
EREWASH BOROUGH COUNCIL,227058,Household/Residual Waste Collection,Agency Staff,29/04/21,QUALITY SERVICE RECRUITMENT LTD,812.03,May-21
EREWASH BOROUGH COUNCIL,227059,Kerbside Dry Recycling Collection,Agency Staff,22/04/21,QUALITY SERVICE RECRUITMENT LTD,423.22,May-21
EREWASH BOROUGH COUNCIL,226510,Transport Trading Account,Agency Staff,04/05/21,QUESTECH RECRUITMENT LTD,906.50,May-21
EREWASH BOROUGH COUNCIL,226636,Transport Trading Account,Agency Staff,14/05/21,QUESTECH RECRUITMENT LTD,906.50,May-21
EREWASH BOROUGH COUNCIL,226410,Transport Trading Account,Agency Staff,26/04/21,QUESTECH RECRUITMENT LTD,906.50,May-21
EREWASH BOROUGH COUNCIL,226635,Transport Trading Account,Agency Staff,10/05/21,QUESTECH RECRUITMENT LTD,784.00,May-21
EREWASH BOROUGH COUNCIL,226953,Balance Sheet,COVID 19 - Additional Restrictions Grant,20/05/21,QUICK FIX KITCHENS,"2,667.00",May-21
EREWASH BOROUGH COUNCIL,226972,Balance Sheet,COVID 19 - Additional Restrictions Grant,20/05/21,QUICKBITS REVIVAL LIMITED,"8,000.00",May-21
EREWASH BOROUGH COUNCIL,227222,Balance Sheet,COVID 19 - Additional Restrictions Grant,25/05/21,R A FAUX AND SONS,"2,667.00",May-21
EREWASH BOROUGH COUNCIL,226830,Balance Sheet,COVID 19 - Additional Restrictions Grant,20/05/21,R B HAIR,"1,000.00",May-21
EREWASH BOROUGH COUNCIL,226850,Balance Sheet,COVID 19 - Additional Restrictions Grant,20/05/21,REDACTED PERSONAL DATA,500.00,May-21
EREWASH BOROUGH COUNCIL,226383,Green Space,Agency Staff,29/04/21,RA INFORMATION SYSTEMS,"2,100.00",May-21
EREWASH BOROUGH COUNCIL,226421,Green Space,Materials/Consumables,16/04/21,RAILWAY SLEEPERS Ltd,"2,600.00",May-21
EREWASH BOROUGH COUNCIL,226890,Balance Sheet,COVID 19 - Additional Restrictions Grant,20/05/21,REDACTED PERSONAL DATA,500.00,May-21
EREWASH BOROUGH COUNCIL,226619,Building Control - Advice and Information,Contracted Services,01/05/21,RANSOMWOOD ESTATES UK LIMITED,531.67,May-21
EREWASH BOROUGH COUNCIL,227340,Balance Sheet,COVID 19 - Additional Restrictions Grant,25/05/21,RATMALLY LTD,"1,500.00",May-21
EREWASH BOROUGH COUNCIL,226884,Balance Sheet,COVID 19 - Additional Restrictions Grant,20/05/21,REDACTED PERSONAL DATA,500.00,May-21
EREWASH BOROUGH COUNCIL,226857,Balance Sheet,COVID 19 - Additional Restrictions Grant,20/05/21,REDACTED PERSONAL DATA,500.00,May-21
EREWASH BOROUGH COUNCIL,226792,Balance Sheet,COVID 19 - Additional Restrictions Grant,20/05/21,REHANNAH ROSE NAILS BROWS BEAUTY,"1,000.00",May-21
EREWASH BOROUGH COUNCIL,227019,Erewash Museum,Sanitary Services,13/05/21,RENTOKIL INITIAL SERVICES LIMITED,11.97,May-21
EREWASH BOROUGH COUNCIL,225956,Public Conveniences,Sanitary Services,07/04/21,RENTOKIL INITIAL SERVICES LIMITED,125.99,May-21
EREWASH BOROUGH COUNCIL,225956,Civic Accommodation - Long Eaton,Sanitary Services,07/04/21,RENTOKIL INITIAL SERVICES LIMITED,63.70,May-21
EREWASH BOROUGH COUNCIL,227019,Shopmobility - Ilkeston,Sanitary Services,13/05/21,RENTOKIL INITIAL SERVICES LIMITED,1.46,May-21
EREWASH BOROUGH COUNCIL,227019,Shopmobility - Long Eaton,Sanitary Services,13/05/21,RENTOKIL INITIAL SERVICES LIMITED,1.46,May-21
EREWASH BOROUGH COUNCIL,225956,Merlin Way Depot - Ilkeston,Sanitary Services,07/04/21,RENTOKIL INITIAL SERVICES LIMITED,58.98,May-21
EREWASH BOROUGH COUNCIL,225956,Parks Changing Rooms,Sanitary Services,07/04/21,RENTOKIL INITIAL SERVICES LIMITED,1.46,May-21
EREWASH BOROUGH COUNCIL,225956,Civic Accommodation - Ilkeston,Sanitary Services,07/04/21,RENTOKIL INITIAL SERVICES LIMITED,31.48,May-21
EREWASH BOROUGH COUNCIL,225956,Shopmobility - Ilkeston,Sanitary Services,07/04/21,RENTOKIL INITIAL SERVICES LIMITED,1.46,May-21
EREWASH BOROUGH COUNCIL,227019,Parks Changing Rooms,Sanitary Services,13/05/21,RENTOKIL INITIAL SERVICES LIMITED,17.08,May-21
EREWASH BOROUGH COUNCIL,227019,Long Eaton Market,Sanitary Services,13/05/21,RENTOKIL INITIAL SERVICES LIMITED,2.92,May-21
EREWASH BOROUGH COUNCIL,225956,Shopmobility - Long Eaton,Sanitary Services,07/04/21,RENTOKIL INITIAL SERVICES LIMITED,1.46,May-21
EREWASH BOROUGH COUNCIL,225956,Erewash Museum,Sanitary Services,07/04/21,RENTOKIL INITIAL SERVICES LIMITED,11.97,May-21
EREWASH BOROUGH COUNCIL,225956,Long Eaton Market,Sanitary Services,07/04/21,RENTOKIL INITIAL SERVICES LIMITED,1.46,May-21
EREWASH BOROUGH COUNCIL,227019,Merlin Way Depot - Ilkeston,Sanitary Services,13/05/21,RENTOKIL INITIAL SERVICES LIMITED,56.85,May-21
EREWASH BOROUGH COUNCIL,227019,Public Conveniences,Sanitary Services,13/05/21,RENTOKIL INITIAL SERVICES LIMITED,125.99,May-21
EREWASH BOROUGH COUNCIL,227019,Civic Accommodation - Ilkeston,Sanitary Services,13/05/21,RENTOKIL INITIAL SERVICES LIMITED,48.12,May-21
EREWASH BOROUGH COUNCIL,227019,Civic Accommodation - Long Eaton,Sanitary Services,13/05/21,RENTOKIL INITIAL SERVICES LIMITED,63.70,May-21
EREWASH BOROUGH COUNCIL,227305,Balance Sheet,COVID 19 - Additional Restrictions Grant,25/05/21,REDACTED PERSONAL DATA,"2,500.00",May-21
EREWASH BOROUGH COUNCIL,226921,Balance Sheet,COVID 19 - Additional Restrictions Grant,20/05/21,REDACTED PERSONAL DATA,500.00,May-21
EREWASH BOROUGH COUNCIL,226705,Balance Sheet,PCC - Election,18/05/21,RICHARD MOORE PUBS LTD,450.00,May-21
EREWASH BOROUGH COUNCIL,226931,Balance Sheet,COVID 19 - Additional Restrictions Grant,20/05/21,RILEY'S TAXIS,500.00,May-21
EREWASH BOROUGH COUNCIL,226464,Sandiacre Friesland Sports Centre,Reactive Maintenance,04/05/21,ROB BERRIDGE HEATING DESIGN CONSULTANTS,650.00,May-21
EREWASH BOROUGH COUNCIL,227021,Civic Accommodation - Ilkeston,Reactive Maintenance,18/05/21,ROB BERRIDGE HEATING DESIGN CONSULTANTS,"2,266.00",May-21
EREWASH BOROUGH COUNCIL,227344,Balance Sheet,COVID 19 - Additional Restrictions Grant,25/05/21,REDACTED PERSONAL DATA,"1,500.00",May-21
EREWASH BOROUGH COUNCIL,227329,Balance Sheet,COVID 19 - Additional Restrictions Grant,25/05/21,ROCK AND BIKE FRIENDS LTD,"2,500.00",May-21
EREWASH BOROUGH COUNCIL,226989,Balance Sheet,COVID 19 - Additional Restrictions Grant,20/05/21,ROLL WITH IT SANDWICH SHOP,"1,500.00",May-21
EREWASH BOROUGH COUNCIL,226668,Balance Sheet,PCC - Election,04/05/21,ROYAL MAIL GROUP LTD.,"9,027.82",May-21
EREWASH BOROUGH COUNCIL,226378,Balance Sheet,PCC - Election,22/04/21,ROYAL MAIL GROUP LTD.,"11,751.22",May-21
EREWASH BOROUGH COUNCIL,226377,Balance Sheet,PCC - Election,21/04/21,ROYAL MAIL GROUP LTD.,"7,784.13",May-21
EREWASH BOROUGH COUNCIL,226671,Revenues and Benefits,Postages,06/05/21,ROYAL MAIL GROUP LTD.,341.67,May-21
EREWASH BOROUGH COUNCIL,226526,Balance Sheet,PCC - Election,27/04/21,ROYAL MAIL GROUP LTD.,"6,782.61",May-21
EREWASH BOROUGH COUNCIL,227102,Revenues and Benefits,Postages,19/05/21,ROYAL MAIL GROUP LTD.,"1,277.20",May-21
EREWASH BOROUGH COUNCIL,227069,Balance Sheet,PCC - Election,11/05/21,ROYAL MAIL GROUP LTD.,"2,912.76",May-21
EREWASH BOROUGH COUNCIL,227064,Revenues and Benefits,Postages,05/05/21,ROYAL MAIL GROUP LTD.,"1,260.60",May-21
EREWASH BOROUGH COUNCIL,226376,Balance Sheet,PCC - Election,23/04/21,ROYAL MAIL GROUP LTD.,"3,449.29",May-21
EREWASH BOROUGH COUNCIL,227218,Balance Sheet,COVID 19 - Additional Restrictions Grant,25/05/21,RTRIIBE,"12,000.00",May-21
EREWASH BOROUGH COUNCIL,226913,Balance Sheet,COVID 19 - Additional Restrictions Grant,20/05/21,REDACTED PERSONAL DATA,500.00,May-21
EREWASH BOROUGH COUNCIL,226759,Planning Policy,Consultants Fees,31/03/21,RUSHCLIFFE BOROUGH COUNCIL,540.00,May-21
EREWASH BOROUGH COUNCIL,226759,Planning Policy,Maintenance of Equipment,31/03/21,RUSHCLIFFE BOROUGH COUNCIL,870.42,May-21
EREWASH BOROUGH COUNCIL,226506,Green Space,Repairs and Maintenance,30/04/21,RUSSELLS (KIRBYMOORSIDE) LIMITED,481.54,May-21
EREWASH BOROUGH COUNCIL,226508,Green Space,Repairs and Maintenance,30/04/21,RUSSELLS (KIRBYMOORSIDE) LIMITED,573.24,May-21
EREWASH BOROUGH COUNCIL,226507,Green Space,Repairs and Maintenance,30/04/21,RUSSELLS (KIRBYMOORSIDE) LIMITED,506.28,May-21
EREWASH BOROUGH COUNCIL,227195,Balance Sheet,COVID 19 - Additional Restrictions Grant,25/05/21,S P RENWICK GARAGE SERVICES,"2,667.00",May-21
EREWASH BOROUGH COUNCIL,226834,Balance Sheet,COVID 19 - Additional Restrictions Grant,20/05/21,S&E BEAUTY LOUNGE,"1,000.00",May-21
EREWASH BOROUGH COUNCIL,226943,Balance Sheet,COVID 19 - Additional Restrictions Grant,20/05/21,SA CORPORATE LTD,"8,000.00",May-21
EREWASH BOROUGH COUNCIL,227269,Balance Sheet,COVID 19 - Additional Restrictions Grant,25/05/21,REDACTED PERSONAL DATA,"2,500.00",May-21
EREWASH BOROUGH COUNCIL,226809,Balance Sheet,COVID 19 - Additional Restrictions Grant,20/05/21,SAM@HEADROOM,"1,000.00",May-21
EREWASH BOROUGH COUNCIL,227262,Balance Sheet,COVID 19 - Additional Restrictions Grant,25/05/21,SAMS BODYSHOP LTD,"2,500.00",May-21
EREWASH BOROUGH COUNCIL,226708,Balance Sheet,PCC - Election,18/05/21,SANDIACRE TOWN CRICKET & SOCIAL CLUB,300.00,May-21
EREWASH BOROUGH COUNCIL,226400,Household/Residual Waste Collection,Repairs and Maintenance,26/04/21,SANDICLIFFE LIMITED,310.80,May-21
EREWASH BOROUGH COUNCIL,226797,Balance Sheet,COVID 19 - Additional Restrictions Grant,20/05/21,REDACTED PERSONAL DATA,"1,000.00",May-21
EREWASH BOROUGH COUNCIL,227263,Balance Sheet,COVID 19 - Additional Restrictions Grant,25/05/21,SARAH JANE PSYCHOTHERAPY,"2,500.00",May-21
EREWASH BOROUGH COUNCIL,227350,Balance Sheet,COVID 19 - Additional Restrictions Grant,25/05/21,REDACTED PERSONAL DATA,"1,000.00",May-21
EREWASH BOROUGH COUNCIL,226854,Balance Sheet,COVID 19 - Additional Restrictions Grant,20/05/21,REDACTED PERSONAL DATA,500.00,May-21
EREWASH BOROUGH COUNCIL,227320,Balance Sheet,COVID 19 - Additional Restrictions Grant,25/05/21,SARITA WHITE PHOTOGRAPHY,"2,500.00",May-21
EREWASH BOROUGH COUNCIL,226709,Balance Sheet,PCC - Election,18/05/21,SAWLEY COMMUNITY CENTRE,450.00,May-21
EREWASH BOROUGH COUNCIL,226670,Balance Sheet,PCC - Election,30/04/21,SCI PRINT LTD,"9,424.90",May-21
EREWASH BOROUGH COUNCIL,226669,Balance Sheet,PCC - Election,30/04/21,SCI PRINT LTD,"21,797.50",May-21
EREWASH BOROUGH COUNCIL,226602,Balance Sheet,Car Loans to Employees,28/04/21,REDACTED PERSONAL DATA,"11,000.00",May-21
EREWASH BOROUGH COUNCIL,226828,Balance Sheet,COVID 19 - Additional Restrictions Grant,20/05/21,REDACTED PERSONAL DATA,"1,000.00",May-21
EREWASH BOROUGH COUNCIL,226839,Balance Sheet,COVID 19 - Additional Restrictions Grant,20/05/21,REDACTED PERSONAL DATA,500.00,May-21
EREWASH BOROUGH COUNCIL,226524,Allotments,Metered Water,04/05/21,SCOTTISH WATER BUSINESS STREAM LIMITED,45.02,May-21
EREWASH BOROUGH COUNCIL,226524,Rutland Sports Park,Metered Water,04/05/21,SCOTTISH WATER BUSINESS STREAM LIMITED,4.24,May-21
EREWASH BOROUGH COUNCIL,226524,Cotmanhay Pavilion,Unmetered Water,04/05/21,SCOTTISH WATER BUSINESS STREAM LIMITED,-46.60,May-21
EREWASH BOROUGH COUNCIL,226524,Merlin Way Depot - Ilkeston,Metered Water,04/05/21,SCOTTISH WATER BUSINESS STREAM LIMITED,"1,863.29",May-21
EREWASH BOROUGH COUNCIL,226524,Public Conveniences,Metered Water,04/05/21,SCOTTISH WATER BUSINESS STREAM LIMITED,754.95,May-21
EREWASH BOROUGH COUNCIL,226524,Sandiacre Friesland Sports Centre,Metered Water,04/05/21,SCOTTISH WATER BUSINESS STREAM LIMITED,103.87,May-21
EREWASH BOROUGH COUNCIL,226524,Shopmobility - Long Eaton,Metered Water,04/05/21,SCOTTISH WATER BUSINESS STREAM LIMITED,18.21,May-21
EREWASH BOROUGH COUNCIL,226524,Green Space,Metered Water,04/05/21,SCOTTISH WATER BUSINESS STREAM LIMITED,296.11,May-21
EREWASH BOROUGH COUNCIL,226524,Long Eaton Market,Metered Water,04/05/21,SCOTTISH WATER BUSINESS STREAM LIMITED,236.45,May-21
EREWASH BOROUGH COUNCIL,226524,Cemeteries,Metered Water,04/05/21,SCOTTISH WATER BUSINESS STREAM LIMITED,166.75,May-21
EREWASH BOROUGH COUNCIL,226524,Civic Accommodation - Long Eaton,Metered Water,04/05/21,SCOTTISH WATER BUSINESS STREAM LIMITED,-41.78,May-21
EREWASH BOROUGH COUNCIL,226392,Public Conveniences,Metered Water,19/04/21,SCOTTISH WATER BUSINESS STREAM LIMITED,"1,080.00",May-21
EREWASH BOROUGH COUNCIL,226524,Shopmobility - Ilkeston,Metered Water,04/05/21,SCOTTISH WATER BUSINESS STREAM LIMITED,39.52,May-21
EREWASH BOROUGH COUNCIL,226524,Civic Accommodation - Ilkeston,Metered Water,04/05/21,SCOTTISH WATER BUSINESS STREAM LIMITED,-29.19,May-21
EREWASH BOROUGH COUNCIL,226524,Erewash Museum,Unmetered Water,04/05/21,SCOTTISH WATER BUSINESS STREAM LIMITED,-17.33,May-21
EREWASH BOROUGH COUNCIL,226524,Car Parking,Unmetered Water,04/05/21,SCOTTISH WATER BUSINESS STREAM LIMITED,62.77,May-21
EREWASH BOROUGH COUNCIL,226805,Balance Sheet,COVID 19 - Additional Restrictions Grant,20/05/21,SELINA'S MOBILE BEAUTY,"1,000.00",May-21
EREWASH BOROUGH COUNCIL,227267,Balance Sheet,COVID 19 - Additional Restrictions Grant,25/05/21,SERENITY HOLISTIC THERAPIES,"2,500.00",May-21
EREWASH BOROUGH COUNCIL,226908,Balance Sheet,COVID 19 - Additional Restrictions Grant,20/05/21,REDACTED PERSONAL DATA,500.00,May-21
EREWASH BOROUGH COUNCIL,226910,Balance Sheet,COVID 19 - Additional Restrictions Grant,20/05/21,REDACTED PERSONAL DATA,500.00,May-21
EREWASH BOROUGH COUNCIL,226902,Balance Sheet,COVID 19 - Additional Restrictions Grant,20/05/21,REDACTED PERSONAL DATA,500.00,May-21
EREWASH BOROUGH COUNCIL,226878,Balance Sheet,COVID 19 - Additional Restrictions Grant,20/05/21,REDACTED PERSONAL DATA,500.00,May-21
EREWASH BOROUGH COUNCIL,226901,Balance Sheet,COVID 19 - Additional Restrictions Grant,20/05/21,REDACTED PERSONAL DATA,500.00,May-21
EREWASH BOROUGH COUNCIL,227276,Balance Sheet,COVID 19 - Additional Restrictions Grant,25/05/21,SHARON STANSFIELD BRASS TUITION,"2,500.00",May-21
EREWASH BOROUGH COUNCIL,227293,Balance Sheet,COVID 19 - Additional Restrictions Grant,25/05/21,SHED 2 STUDIOS,"2,500.00",May-21
EREWASH BOROUGH COUNCIL,227062,Revenues and Benefits,Benefit Fraud Investigation,19/05/21,SHELTER TRAINING,500.00,May-21
EREWASH BOROUGH COUNCIL,227062,Revenues and Benefits,Reference Literature and Publications,19/05/21,SHELTER TRAINING,46.00,May-21
EREWASH BOROUGH COUNCIL,226858,Balance Sheet,COVID 19 - Additional Restrictions Grant,20/05/21,SHERBETS EVENTS UK LTD,500.00,May-21
EREWASH BOROUGH COUNCIL,226791,Balance Sheet,COVID 19 - Additional Restrictions Grant,20/05/21,SHINE HAIR & BEAUTY,"1,000.00",May-21
EREWASH BOROUGH COUNCIL,226811,Balance Sheet,COVID 19 - Additional Restrictions Grant,20/05/21,SHINE HAIR BY DAYNA,"1,000.00",May-21
EREWASH BOROUGH COUNCIL,226915,Balance Sheet,COVID 19 - Additional Restrictions Grant,20/05/21,REDACTED PERSONAL DATA,500.00,May-21
EREWASH BOROUGH COUNCIL,226816,Balance Sheet,COVID 19 - Additional Restrictions Grant,20/05/21,REDACTED PERSONAL DATA,"1,000.00",May-21
EREWASH BOROUGH COUNCIL,227229,Balance Sheet,COVID 19 - Additional Restrictions Grant,25/05/21,SIGN FORGE LIMITED,"8,000.00",May-21
EREWASH BOROUGH COUNCIL,227278,Balance Sheet,COVID 19 - Additional Restrictions Grant,25/05/21,SINGSONGSTORIES,"2,500.00",May-21
EREWASH BOROUGH COUNCIL,226833,Balance Sheet,COVID 19 - Additional Restrictions Grant,20/05/21,SM BEAUTY,"1,000.00",May-21
EREWASH BOROUGH COUNCIL,227284,Balance Sheet,COVID 19 - Additional Restrictions Grant,25/05/21,SMILING CATS AND DOGS,"2,500.00",May-21
EREWASH BOROUGH COUNCIL,227339,Balance Sheet,COVID 19 - Additional Restrictions Grant,25/05/21,SMITH-GUARINO TRADING LTD,"1,500.00",May-21
EREWASH BOROUGH COUNCIL,227146,Community Consultation and Involvement,Survey Fees,30/04/21,SNAP SURVEYS LIMITED,"1,660.00",May-21
EREWASH BOROUGH COUNCIL,227322,Balance Sheet,COVID 19 - Additional Restrictions Grant,25/05/21,SNAPE JOINERY LTD,"2,500.00",May-21
EREWASH BOROUGH COUNCIL,226222,ICT Support Services,Security,16/04/21,SOFTCAT LTD,906.07,May-21
EREWASH BOROUGH COUNCIL,227078,Homelessness,Temporary Accommodation,10/09/20,SOUTH DERBYSHIRE DISTRICT COUNCIL,"1,078.30",May-21
EREWASH BOROUGH COUNCIL,226561,Watercourse Maintenance,Contracted Services,02/03/21,SPALDINGS LIMITED,356.40,May-21
EREWASH BOROUGH COUNCIL,226729,Balance Sheet,COVID 19 - Additional Restrictions Grant,18/05/21,SPONDON CHEESERY LTD,"1,964.00",May-21
EREWASH BOROUGH COUNCIL,226710,Balance Sheet,PCC - Election,18/05/21,ST ANDREWS  METHODIST CHURCH,250.00,May-21
EREWASH BOROUGH COUNCIL,227213,Balance Sheet,COVID 19 - Additional Restrictions Grant,25/05/21,ST LAURENCE PRE-SCHOOL & CLUB 11 LTD,"12,000.00",May-21
EREWASH BOROUGH COUNCIL,226712,Balance Sheet,PCC - Election,18/05/21,ST MARY'S CHURCH,250.00,May-21
EREWASH BOROUGH COUNCIL,227061,Atmospheric Pollution,Nitrogen Dioxide Survey,07/05/21,STAFFORDSHIRE COUNTY COUNCIL,"3,456.00",May-21
EREWASH BOROUGH COUNCIL,226486,Green Space,Materials/Consumables,10/04/21,STANTON RECYCLING LIMITED,902.40,May-21
EREWASH BOROUGH COUNCIL,226714,Balance Sheet,PCC - Election,18/05/21,STANTON-BY-DALE PARISH COUNCIL,400.00,May-21
EREWASH BOROUGH COUNCIL,227288,Balance Sheet,COVID 19 - Additional Restrictions Grant,25/05/21,STARK INCORPORATED LIMITED,"2,500.00",May-21
EREWASH BOROUGH COUNCIL,227205,Balance Sheet,COVID 19 - Additional Restrictions Grant,25/05/21,STAY & PLAY FOR DOGS,"1,500.00",May-21
EREWASH BOROUGH COUNCIL,227385,Parks Pavilions,Reactive Maintenance,19/05/21,STEELCRAFT FABRICATIONS,310.00,May-21
EREWASH BOROUGH COUNCIL,226773,Erewash Museum,General Equipment,14/05/21,STEELCRAFT FABRICATIONS,210.00,May-21
EREWASH BOROUGH COUNCIL,226772,Green Space,Materials/Consumables,14/05/21,STEELCRAFT FABRICATIONS,240.00,May-21
EREWASH BOROUGH COUNCIL,227379,Car Parking,Reactive Maintenance,21/05/21,STEELCRAFT FABRICATIONS,250.00,May-21
EREWASH BOROUGH COUNCIL,226603,Balance Sheet,Car Loans to Employees,11/05/21,STEPHEN DRAPER,"1,000.00",May-21
EREWASH BOROUGH COUNCIL,227411,Corporate Health and Safety,Water Testing (Legionella),30/04/21,STERILIZING SERVICES LTD,"1,127.80",May-21
EREWASH BOROUGH COUNCIL,226979,Balance Sheet,COVID 19 - Additional Restrictions Grant,20/05/21,STEVE DEERY BOOKS,"2,667.00",May-21
EREWASH BOROUGH COUNCIL,227338,Balance Sheet,COVID 19 - Additional Restrictions Grant,25/05/21,STEVEN SMITH,"1,500.00",May-21
EREWASH BOROUGH COUNCIL,227303,Balance Sheet,COVID 19 - Additional Restrictions Grant,25/05/21,STRETCH FIT PILATES & THERAPY LTD,"2,500.00",May-21
EREWASH BOROUGH COUNCIL,226835,Balance Sheet,COVID 19 - Additional Restrictions Grant,20/05/21,STUARTS HAIR & BEAUTY,"1,000.00",May-21
EREWASH BOROUGH COUNCIL,226998,Balance Sheet,COVID 19 - Additional Restrictions Grant,20/05/21,STUARTS HAIR & BEAUTY.,"1,000.00",May-21
EREWASH BOROUGH COUNCIL,226818,Balance Sheet,COVID 19 - Additional Restrictions Grant,20/05/21,STUDIO 5 BEAUTY,"1,000.00",May-21
EREWASH BOROUGH COUNCIL,226726,Balance Sheet,COVID 19 - Additional Restrictions Grant,18/05/21,STUTE BOWLS CLUB,"1,964.00",May-21
EREWASH BOROUGH COUNCIL,226951,Balance Sheet,COVID 19 - Additional Restrictions Grant,20/05/21,STYLISH HOMES (NOTTS) LTD,"2,667.00",May-21
EREWASH BOROUGH COUNCIL,226934,Balance Sheet,COVID 19 - Additional Restrictions Grant,20/05/21,REDACTED PERSONAL DATA,500.00,May-21
EREWASH BOROUGH COUNCIL,227308,Balance Sheet,COVID 19 - Additional Restrictions Grant,25/05/21,SUSAN ALLEN DRIVING SCHOOL,"2,500.00",May-21
EREWASH BOROUGH COUNCIL,226912,Balance Sheet,COVID 19 - Additional Restrictions Grant,20/05/21,REDACTED PERSONAL DATA,500.00,May-21
EREWASH BOROUGH COUNCIL,227013,CCTV - Ilkeston and Long Eaton,Subscriptions,21/04/21,SYNECTICS SECURITY LIMITED,"2,790.00",May-21
EREWASH BOROUGH COUNCIL,227076,CCTV - Ilkeston and Long Eaton,Contracted Services,20/05/21,SYNECTICS SECURITY LIMITED,"1,143.01",May-21
EREWASH BOROUGH COUNCIL,227010,CCTV - Ilkeston and Long Eaton,Maintenance of Equipment,21/04/21,SYNECTICS SECURITY LIMITED,212.40,May-21
EREWASH BOROUGH COUNCIL,226133,CCTV - Ilkeston and Long Eaton,Contracted Services,07/04/21,SYNECTICS SECURITY LIMITED,"7,920.50",May-21
EREWASH BOROUGH COUNCIL,227076,Balance Sheet,Building Works,20/05/21,SYNECTICS SECURITY LIMITED,"9,709.00",May-21
EREWASH BOROUGH COUNCIL,226406,Green Space,Repairs and Maintenance,16/04/21,T C HARRISON GROUP LTD,"1,635.76",May-21
EREWASH BOROUGH COUNCIL,227028,Street Scene,Repairs and Maintenance,13/05/21,T C HARRISON GROUP LTD,"1,045.53",May-21
EREWASH BOROUGH COUNCIL,227018,Green Space,Materials/Consumables,17/05/21,T H HEATH  CONTRACTS  LTD,360.00,May-21
EREWASH BOROUGH COUNCIL,226481,Green Space,Contracted Services,28/04/21,T H HEATH  CONTRACTS  LTD,"7,791.81",May-21
EREWASH BOROUGH COUNCIL,226055,Green Space,Materials/Consumables,15/04/21,T H HEATH  CONTRACTS  LTD,236.00,May-21
EREWASH BOROUGH COUNCIL,227428,Household/Residual Waste Collection,Repairs and Maintenance,26/04/21,T P HOPWELL (BIRMINGHAM) LTD,"8,262.24",May-21
EREWASH BOROUGH COUNCIL,226810,Balance Sheet,COVID 19 - Additional Restrictions Grant,20/05/21,T/A APPEARANCE HAIR & BEAUTY,"1,000.00",May-21
EREWASH BOROUGH COUNCIL,227304,Balance Sheet,COVID 19 - Additional Restrictions Grant,25/05/21,TABLETHOOKZ LTD,"2,500.00",May-21
EREWASH BOROUGH COUNCIL,227295,Balance Sheet,COVID 19 - Additional Restrictions Grant,25/05/21,TAYLORMADE JOINERY CONSULTANTS,"2,500.00",May-21
EREWASH BOROUGH COUNCIL,227286,Balance Sheet,COVID 19 - Additional Restrictions Grant,25/05/21,TECHNICAL TEACH ACADEMY,"2,500.00",May-21
EREWASH BOROUGH COUNCIL,226389,Cemeteries,Alarms Planned Maintenence,27/04/21,TECSERV UK,9.00,May-21
EREWASH BOROUGH COUNCIL,227402,Cemeteries,Alarms Planned Maintenence,12/05/21,TECSERV UK,9.00,May-21
EREWASH BOROUGH COUNCIL,227402,West Park Nursery,Alarms Planned Maintenence,12/05/21,TECSERV UK,10.50,May-21
EREWASH BOROUGH COUNCIL,226388,West Park Pavilion / Café,Alarms Planned Maintenence,27/04/21,TECSERV UK,76.50,May-21
EREWASH BOROUGH COUNCIL,226389,West Park Pavilion / Café,Alarms Planned Maintenence,27/04/21,TECSERV UK,76.50,May-21
EREWASH BOROUGH COUNCIL,227402,Civic Accommodation - Long Eaton,Alarms Planned Maintenence,12/05/21,TECSERV UK,175.00,May-21
EREWASH BOROUGH COUNCIL,226388,Rutland Sports Park,Alarms Planned Maintenence,27/04/21,TECSERV UK,28.50,May-21
EREWASH BOROUGH COUNCIL,226389,Shopmobility - Long Eaton,Alarms Planned Maintenence,27/04/21,TECSERV UK,63.83,May-21
EREWASH BOROUGH COUNCIL,227402,Shopmobility - Long Eaton,Alarms Planned Maintenence,12/05/21,TECSERV UK,63.82,May-21
EREWASH BOROUGH COUNCIL,226388,West Park Nursery,Alarms Planned Maintenence,27/04/21,TECSERV UK,10.50,May-21
EREWASH BOROUGH COUNCIL,226388,Cemeteries,Alarms Planned Maintenence,27/04/21,TECSERV UK,9.00,May-21
EREWASH BOROUGH COUNCIL,226388,Civic Accommodation - Long Eaton,Alarms Planned Maintenence,27/04/21,TECSERV UK,175.00,May-21
EREWASH BOROUGH COUNCIL,227402,Merlin Way Depot - Ilkeston,Alarms Planned Maintenence,12/05/21,TECSERV UK,93.83,May-21
EREWASH BOROUGH COUNCIL,226389,Parks Changing Rooms,Alarms Planned Maintenence,27/04/21,TECSERV UK,16.49,May-21
EREWASH BOROUGH COUNCIL,226389,Petersham Hall,Alarms Planned Maintenence,27/04/21,TECSERV UK,23.50,May-21
EREWASH BOROUGH COUNCIL,227402,Petersham Hall,Alarms Planned Maintenence,12/05/21,TECSERV UK,23.50,May-21
EREWASH BOROUGH COUNCIL,227402,Rutland Sports Park,Alarms Planned Maintenence,12/05/21,TECSERV UK,28.50,May-21
EREWASH BOROUGH COUNCIL,226389,Shopmobility - Ilkeston,Alarms Planned Maintenence,27/04/21,TECSERV UK,57.83,May-21
EREWASH BOROUGH COUNCIL,226388,Civic Accommodation - Ilkeston,Alarms Planned Maintenence,27/04/21,TECSERV UK,196.59,May-21
EREWASH BOROUGH COUNCIL,227402,West Park Pavilion / Café,Alarms Planned Maintenence,12/05/21,TECSERV UK,76.50,May-21
EREWASH BOROUGH COUNCIL,226389,Bridge House - Long Eaton,Alarms Planned Maintenence,27/04/21,TECSERV UK,60.84,May-21
EREWASH BOROUGH COUNCIL,226389,Civic Accommodation - Long Eaton,Alarms Planned Maintenence,27/04/21,TECSERV UK,175.00,May-21
EREWASH BOROUGH COUNCIL,226388,Merlin Way Depot - Ilkeston,Alarms Planned Maintenence,27/04/21,TECSERV UK,93.83,May-21
EREWASH BOROUGH COUNCIL,226389,Rutland Sports Park,Alarms Planned Maintenence,27/04/21,TECSERV UK,28.50,May-21
EREWASH BOROUGH COUNCIL,226388,Erewash Museum,Alarms Planned Maintenence,27/04/21,TECSERV UK,143.67,May-21
EREWASH BOROUGH COUNCIL,227402,Shopmobility - Ilkeston,Alarms Planned Maintenence,12/05/21,TECSERV UK,57.83,May-21
EREWASH BOROUGH COUNCIL,227402,Bridge House - Long Eaton,Alarms Planned Maintenence,12/05/21,TECSERV UK,60.84,May-21
EREWASH BOROUGH COUNCIL,226389,Merlin Way Depot - Ilkeston,Alarms Planned Maintenence,27/04/21,TECSERV UK,93.83,May-21
EREWASH BOROUGH COUNCIL,226389,Erewash Museum,Alarms Planned Maintenence,27/04/21,TECSERV UK,143.67,May-21
EREWASH BOROUGH COUNCIL,226388,Shopmobility - Long Eaton,Alarms Planned Maintenence,27/04/21,TECSERV UK,63.83,May-21
EREWASH BOROUGH COUNCIL,226389,West Park Nursery,Alarms Planned Maintenence,27/04/21,TECSERV UK,10.50,May-21
EREWASH BOROUGH COUNCIL,226389,Civic Accommodation - Ilkeston,Alarms Planned Maintenence,27/04/21,TECSERV UK,196.59,May-21
EREWASH BOROUGH COUNCIL,226388,Parks Changing Rooms,Alarms Planned Maintenence,27/04/21,TECSERV UK,16.49,May-21
EREWASH BOROUGH COUNCIL,227402,Parks Changing Rooms,Alarms Planned Maintenence,12/05/21,TECSERV UK,16.50,May-21
EREWASH BOROUGH COUNCIL,226388,Petersham Hall,Alarms Planned Maintenence,27/04/21,TECSERV UK,23.50,May-21
EREWASH BOROUGH COUNCIL,226388,Bridge House - Long Eaton,Alarms Planned Maintenence,27/04/21,TECSERV UK,60.84,May-21
EREWASH BOROUGH COUNCIL,227402,Erewash Museum,Alarms Planned Maintenence,12/05/21,TECSERV UK,143.67,May-21
EREWASH BOROUGH COUNCIL,226388,Shopmobility - Ilkeston,Alarms Planned Maintenence,27/04/21,TECSERV UK,57.83,May-21
EREWASH BOROUGH COUNCIL,227402,Civic Accommodation - Ilkeston,Alarms Planned Maintenence,12/05/21,TECSERV UK,196.59,May-21
EREWASH BOROUGH COUNCIL,226460,ICT Support Services,Telephones,01/05/21,TELEPHONE TECHNOLOGY LTD,210.00,May-21
EREWASH BOROUGH COUNCIL,226401,Household/Residual Waste Collection,Repairs and Maintenance,26/04/21,TERBERG MATEC UK,256.62,May-21
EREWASH BOROUGH COUNCIL,227433,Household/Residual Waste Collection,Repairs and Maintenance,21/05/21,TERBERG MATEC UK,356.01,May-21
EREWASH BOROUGH COUNCIL,226040,Kerbside Dry Recycling Collection,Repairs and Maintenance,08/04/21,TERBERG MATEC UK,480.28,May-21
EREWASH BOROUGH COUNCIL,226402,Kerbside Dry Recycling Collection,Repairs and Maintenance,27/04/21,TERBERG MATEC UK,381.67,May-21
EREWASH BOROUGH COUNCIL,227306,Balance Sheet,COVID 19 - Additional Restrictions Grant,25/05/21,TERESA SHAW T/A POROSOL PRINT,"2,500.00",May-21
EREWASH BOROUGH COUNCIL,226803,Balance Sheet,COVID 19 - Additional Restrictions Grant,20/05/21,TERESA SMITH T/A BELLE AME,"1,000.00",May-21
EREWASH BOROUGH COUNCIL,227349,Balance Sheet,COVID 19 - Additional Restrictions Grant,25/05/21,TESCA,"1,500.00",May-21
EREWASH BOROUGH COUNCIL,226793,Balance Sheet,COVID 19 - Additional Restrictions Grant,20/05/21,THE BEAUTY RETREAT,"1,000.00",May-21
EREWASH BOROUGH COUNCIL,226819,Balance Sheet,COVID 19 - Additional Restrictions Grant,20/05/21,THE BROW EDIT,"1,000.00",May-21
EREWASH BOROUGH COUNCIL,226970,Balance Sheet,COVID 19 - Additional Restrictions Grant,20/05/21,THE CONFERENCE WORKS LIMITED,"8,000.00",May-21
EREWASH BOROUGH COUNCIL,226554,Balance Sheet,COVID 19 - Additional Restrictions Grant,11/05/21,THE GEL BEAUTIQUE,"3,464.00",May-21
EREWASH BOROUGH COUNCIL,226783,Balance Sheet,COVID 19 - Additional Restrictions Grant,20/05/21,THE GEL BEAUTIQUE,"1,000.00",May-21
EREWASH BOROUGH COUNCIL,227247,Balance Sheet,COVID 19 - Additional Restrictions Grant,25/05/21,THE HOUSE OF SK-1 LTD,"8,000.00",May-21
EREWASH BOROUGH COUNCIL,226985,Balance Sheet,COVID 19 - Additional Restrictions Grant,20/05/21,THE KNITTING ROOM,"2,500.00",May-21
EREWASH BOROUGH COUNCIL,226723,Balance Sheet,COVID 19 - Additional Restrictions Grant,18/05/21,THE MAKEOVER LOUNGE,"1,964.00",May-21
EREWASH BOROUGH COUNCIL,226798,Balance Sheet,COVID 19 - Additional Restrictions Grant,20/05/21,THE MILL SALON,"1,000.00",May-21
EREWASH BOROUGH COUNCIL,226935,Balance Sheet,COVID 19 - Additional Restrictions Grant,20/05/21,THE NEVERLAND MUSIC COMPANY,500.00,May-21
EREWASH BOROUGH COUNCIL,227120,Green Space,Fuel,02/05/21,THE RIGHT FUELCARD COMPANY LTD,494.54,May-21
EREWASH BOROUGH COUNCIL,226601,Green Space,Fuel,18/04/21,THE RIGHT FUELCARD COMPANY LTD,352.34,May-21
EREWASH BOROUGH COUNCIL,227119,Green Space,Fuel,09/05/21,THE RIGHT FUELCARD COMPANY LTD,323.52,May-21
EREWASH BOROUGH COUNCIL,226600,Green Space,Fuel,11/04/21,THE RIGHT FUELCARD COMPANY LTD,252.37,May-21
EREWASH BOROUGH COUNCIL,226980,Balance Sheet,COVID 19 - Additional Restrictions Grant,20/05/21,THE TRAVEL SNOB LTD,"2,667.00",May-21
EREWASH BOROUGH COUNCIL,227328,Balance Sheet,COVID 19 - Additional Restrictions Grant,25/05/21,THE WELLBEING DEN,"2,500.00",May-21
EREWASH BOROUGH COUNCIL,226963,Balance Sheet,COVID 19 - Additional Restrictions Grant,20/05/21,REDACTED PERSONAL DATA,"2,500.00",May-21
EREWASH BOROUGH COUNCIL,227090,Kerbside Dry Recycling Collection,Agency Staff,28/04/21,THORN BAKER LIMITED,"1,226.77",May-21
EREWASH BOROUGH COUNCIL,227089,Household/Residual Waste Collection,Agency Staff,05/05/21,THORN BAKER LIMITED,"1,651.27",May-21
EREWASH BOROUGH COUNCIL,227407,Kerbside Dry Recycling Collection,Agency Staff,18/05/21,THORN BAKER LIMITED,"1,430.32",May-21
EREWASH BOROUGH COUNCIL,227087,Household/Residual Waste Collection,Agency Staff,12/05/21,THORN BAKER LIMITED,"2,213.15",May-21
EREWASH BOROUGH COUNCIL,227087,Kerbside Dry Recycling Collection,Agency Staff,12/05/21,THORN BAKER LIMITED,"1,475.44",May-21
EREWASH BOROUGH COUNCIL,227089,Kerbside Dry Recycling Collection,Agency Staff,05/05/21,THORN BAKER LIMITED,"1,100.84",May-21
EREWASH BOROUGH COUNCIL,227090,Household/Residual Waste Collection,Agency Staff,28/04/21,THORN BAKER LIMITED,"1,840.16",May-21
EREWASH BOROUGH COUNCIL,227088,Household/Residual Waste Collection,Agency Staff,21/04/21,THORN BAKER LIMITED,"1,669.61",May-21
EREWASH BOROUGH COUNCIL,227407,Household/Residual Waste Collection,Agency Staff,18/05/21,THORN BAKER LIMITED,"2,145.48",May-21
EREWASH BOROUGH COUNCIL,227088,Kerbside Dry Recycling Collection,Agency Staff,21/04/21,THORN BAKER LIMITED,"1,113.07",May-21
EREWASH BOROUGH COUNCIL,227180,Property and Estates,Planned Preventative Maintenance,13/04/21,TIME ASSURED LIMITED,300.00,May-21
EREWASH BOROUGH COUNCIL,226946,Balance Sheet,COVID 19 - Additional Restrictions Grant,20/05/21,TOM BRIGGS CHEF LTD,"8,000.00",May-21
EREWASH BOROUGH COUNCIL,227356,Balance Sheet,COVID 19 - Additional Restrictions Grant,25/05/21,TOM WATSON BARBER,"1,000.00",May-21
EREWASH BOROUGH COUNCIL,227148,Civic Accommodation - Long Eaton,Electricity,11/05/21,TOTAL GAS & POWER LTD,"1,544.49",May-21
EREWASH BOROUGH COUNCIL,226297,Car Parking,Electricity,15/04/21,TOTAL GAS & POWER LTD,516.64,May-21
EREWASH BOROUGH COUNCIL,226297,CCTV - Ilkeston and Long Eaton,Electricity,15/04/21,TOTAL GAS & POWER LTD,239.13,May-21
EREWASH BOROUGH COUNCIL,226297,Shopmobility - Long Eaton,Electricity,15/04/21,TOTAL GAS & POWER LTD,194.98,May-21
EREWASH BOROUGH COUNCIL,227149,Cotmanhay Pavilion,Electricity,11/05/21,TOTAL GAS & POWER LTD,59.57,May-21
EREWASH BOROUGH COUNCIL,227149,Shopmobility - Ilkeston,Electricity,11/05/21,TOTAL GAS & POWER LTD,232.78,May-21
EREWASH BOROUGH COUNCIL,227430,Green Space,Gas,20/05/21,TOTAL GAS & POWER LTD,447.97,May-21
EREWASH BOROUGH COUNCIL,226297,Toll Bar House - Ilkeston,Electricity,15/04/21,TOTAL GAS & POWER LTD,838.84,May-21
EREWASH BOROUGH COUNCIL,226297,Civic Accommodation - Ilkeston,Electricity,15/04/21,TOTAL GAS & POWER LTD,388.43,May-21
EREWASH BOROUGH COUNCIL,227149,Bridge Arches - Long Eaton,Electricity,11/05/21,TOTAL GAS & POWER LTD,41.13,May-21
EREWASH BOROUGH COUNCIL,226297,Ilkeston Market,Electricity,15/04/21,TOTAL GAS & POWER LTD,377.12,May-21
EREWASH BOROUGH COUNCIL,226297,Belvoir Close Maintenance,Electricity,15/04/21,TOTAL GAS & POWER LTD,25.64,May-21
EREWASH BOROUGH COUNCIL,226296,Sandiacre Friesland Sports Centre,Electricity,13/04/21,TOTAL GAS & POWER LTD,465.76,May-21
EREWASH BOROUGH COUNCIL,226296,Green Space,Electricity,13/04/21,TOTAL GAS & POWER LTD,574.89,May-21
EREWASH BOROUGH COUNCIL,226297,Shopmobility - Ilkeston,Electricity,15/04/21,TOTAL GAS & POWER LTD,249.45,May-21
EREWASH BOROUGH COUNCIL,226322,Civic Accommodation - Ilkeston,Gas,13/04/21,TOTAL GAS & POWER LTD,"1,060.86",May-21
EREWASH BOROUGH COUNCIL,226322,Erewash Museum,Gas,13/04/21,TOTAL GAS & POWER LTD,313.62,May-21
EREWASH BOROUGH COUNCIL,227430,Erewash Museum,Gas,20/05/21,TOTAL GAS & POWER LTD,240.72,May-21
EREWASH BOROUGH COUNCIL,227430,Director of Resources,Gas,20/05/21,TOTAL GAS & POWER LTD,4.11,May-21
EREWASH BOROUGH COUNCIL,226322,Rutland Sports Park,Gas,13/04/21,TOTAL GAS & POWER LTD,235.96,May-21
EREWASH BOROUGH COUNCIL,227149,Civic Accommodation - Ilkeston,Electricity,11/05/21,TOTAL GAS & POWER LTD,346.75,May-21
EREWASH BOROUGH COUNCIL,227148,Civic Accommodation - Ilkeston,Electricity,11/05/21,TOTAL GAS & POWER LTD,"1,170.94",May-21
EREWASH BOROUGH COUNCIL,227149,Civic Accommodation - Long Eaton,Electricity,11/05/21,TOTAL GAS & POWER LTD,20.86,May-21
EREWASH BOROUGH COUNCIL,227148,Merlin Way Depot - Ilkeston,Electricity,11/05/21,TOTAL GAS & POWER LTD,"1,736.93",May-21
EREWASH BOROUGH COUNCIL,227149,Ilkeston Market,Electricity,11/05/21,TOTAL GAS & POWER LTD,400.56,May-21
EREWASH BOROUGH COUNCIL,226296,Long Eaton Market,Electricity,13/04/21,TOTAL GAS & POWER LTD,165.31,May-21
EREWASH BOROUGH COUNCIL,227149,Belvoir Close Maintenance,Electricity,11/05/21,TOTAL GAS & POWER LTD,27.06,May-21
EREWASH BOROUGH COUNCIL,226297,Cotmanhay Pavilion,Electricity,15/04/21,TOTAL GAS & POWER LTD,56.14,May-21
EREWASH BOROUGH COUNCIL,227149,Green Space,Electricity,11/05/21,TOTAL GAS & POWER LTD,"2,102.07",May-21
EREWASH BOROUGH COUNCIL,227430,Civic Accommodation - Long Eaton,Gas,20/05/21,TOTAL GAS & POWER LTD,830.56,May-21
EREWASH BOROUGH COUNCIL,226297,Bridge Arches - Long Eaton,Electricity,15/04/21,TOTAL GAS & POWER LTD,42.58,May-21
EREWASH BOROUGH COUNCIL,227148,Long Eaton Market,Electricity,11/05/21,TOTAL GAS & POWER LTD,148.57,May-21
EREWASH BOROUGH COUNCIL,227149,Property and Estates,Electricity,11/05/21,TOTAL GAS & POWER LTD,18.52,May-21
EREWASH BOROUGH COUNCIL,227148,Green Space,Electricity,11/05/21,TOTAL GAS & POWER LTD,706.82,May-21
EREWASH BOROUGH COUNCIL,227430,Merlin Way Depot - Ilkeston,Gas,20/05/21,TOTAL GAS & POWER LTD,424.46,May-21
EREWASH BOROUGH COUNCIL,227430,Bridge House - Long Eaton,Gas,20/05/21,TOTAL GAS & POWER LTD,193.85,May-21
EREWASH BOROUGH COUNCIL,226322,Sandiacre Friesland Sports Centre,Gas,13/04/21,TOTAL GAS & POWER LTD,288.55,May-21
EREWASH BOROUGH COUNCIL,227149,Toll Bar House - Ilkeston,Electricity,11/05/21,TOTAL GAS & POWER LTD,703.08,May-21
EREWASH BOROUGH COUNCIL,226296,Civic Accommodation - Ilkeston,Electricity,13/04/21,TOTAL GAS & POWER LTD,"1,366.03",May-21
EREWASH BOROUGH COUNCIL,226296,Merlin Way Depot - Ilkeston,Electricity,13/04/21,TOTAL GAS & POWER LTD,"1,603.68",May-21
EREWASH BOROUGH COUNCIL,226297,Long Eaton Market,Electricity,15/04/21,TOTAL GAS & POWER LTD,42.72,May-21
EREWASH BOROUGH COUNCIL,227149,CCTV - Ilkeston and Long Eaton,Electricity,11/05/21,TOTAL GAS & POWER LTD,310.99,May-21
EREWASH BOROUGH COUNCIL,226297,Public Conveniences,Electricity,15/04/21,TOTAL GAS & POWER LTD,455.97,May-21
EREWASH BOROUGH COUNCIL,227149,Public Conveniences,Electricity,11/05/21,TOTAL GAS & POWER LTD,490.00,May-21
EREWASH BOROUGH COUNCIL,227149,Shopmobility - Long Eaton,Electricity,11/05/21,TOTAL GAS & POWER LTD,197.81,May-21
EREWASH BOROUGH COUNCIL,226297,Property and Estates,Electricity,15/04/21,TOTAL GAS & POWER LTD,18.98,May-21
EREWASH BOROUGH COUNCIL,227149,Pewit Golf Course,Electricity,11/05/21,TOTAL GAS & POWER LTD,70.06,May-21
EREWASH BOROUGH COUNCIL,226322,Green Space,Gas,13/04/21,TOTAL GAS & POWER LTD,553.67,May-21
EREWASH BOROUGH COUNCIL,226322,Merlin Way Depot - Ilkeston,Gas,13/04/21,TOTAL GAS & POWER LTD,559.22,May-21
EREWASH BOROUGH COUNCIL,227430,Rutland Sports Park,Gas,20/05/21,TOTAL GAS & POWER LTD,207.88,May-21
EREWASH BOROUGH COUNCIL,226322,Bridge House - Long Eaton,Gas,13/04/21,TOTAL GAS & POWER LTD,230.95,May-21
EREWASH BOROUGH COUNCIL,227149,Erewash Museum,Electricity,11/05/21,TOTAL GAS & POWER LTD,141.01,May-21
EREWASH BOROUGH COUNCIL,227149,Cemeteries,Electricity,11/05/21,TOTAL GAS & POWER LTD,221.14,May-21
EREWASH BOROUGH COUNCIL,226297,Green Space,Electricity,15/04/21,TOTAL GAS & POWER LTD,"2,139.81",May-21
EREWASH BOROUGH COUNCIL,226322,Civic Accommodation - Long Eaton,Gas,13/04/21,TOTAL GAS & POWER LTD,988.07,May-21
EREWASH BOROUGH COUNCIL,227430,Sandiacre Friesland Sports Centre,Gas,20/05/21,TOTAL GAS & POWER LTD,91.66,May-21
EREWASH BOROUGH COUNCIL,226296,Civic Accommodation - Long Eaton,Electricity,13/04/21,TOTAL GAS & POWER LTD,"1,679.05",May-21
EREWASH BOROUGH COUNCIL,227149,Long Eaton Market,Electricity,11/05/21,TOTAL GAS & POWER LTD,43.77,May-21
EREWASH BOROUGH COUNCIL,226297,Cemeteries,Electricity,15/04/21,TOTAL GAS & POWER LTD,230.44,May-21
EREWASH BOROUGH COUNCIL,227148,Sandiacre Friesland Sports Centre,Electricity,11/05/21,TOTAL GAS & POWER LTD,334.75,May-21
EREWASH BOROUGH COUNCIL,226297,Pewit Golf Course,Electricity,15/04/21,TOTAL GAS & POWER LTD,72.34,May-21
EREWASH BOROUGH COUNCIL,227430,Civic Accommodation - Ilkeston,Gas,20/05/21,TOTAL GAS & POWER LTD,855.79,May-21
EREWASH BOROUGH COUNCIL,226297,Erewash Museum,Electricity,15/04/21,TOTAL GAS & POWER LTD,116.86,May-21
EREWASH BOROUGH COUNCIL,226297,Civic Accommodation - Long Eaton,Electricity,15/04/21,TOTAL GAS & POWER LTD,20.65,May-21
EREWASH BOROUGH COUNCIL,227149,Car Parking,Electricity,11/05/21,TOTAL GAS & POWER LTD,643.49,May-21
EREWASH BOROUGH COUNCIL,226125,Transport Trading Account,Agency Staff,18/04/21,TOTAL TRANSPORT COMPLIANCE,"1,375.00",May-21
EREWASH BOROUGH COUNCIL,227086,Transport Trading Account,Agency Staff,30/04/21,TOTAL TRANSPORT COMPLIANCE,"1,500.00",May-21
EREWASH BOROUGH COUNCIL,226824,Balance Sheet,COVID 19 - Additional Restrictions Grant,20/05/21,TOUCH OF HEAVEN,"1,000.00",May-21
EREWASH BOROUGH COUNCIL,227298,Balance Sheet,COVID 19 - Additional Restrictions Grant,25/05/21,TRAIN WITH LEE,"2,500.00",May-21
EREWASH BOROUGH COUNCIL,226390,Revenues and Benefits,Software Licences,26/04/21,TRANSUNION INTERNATIONAL UK LIMITED,"12,093.04",May-21
EREWASH BOROUGH COUNCIL,226715,Balance Sheet,PCC - Election,18/05/21,TREFOIL HOUSE MANAGEMENT COMMITTEE,450.00,May-21
EREWASH BOROUGH COUNCIL,226627,Balance Sheet,PCC - Election,12/05/21,TRENT MARQUEES,"1,625.00",May-21
EREWASH BOROUGH COUNCIL,226947,Balance Sheet,COVID 19 - Additional Restrictions Grant,20/05/21,TRENT MARQUEES,"2,500.00",May-21
EREWASH BOROUGH COUNCIL,226716,Balance Sheet,PCC - Election,18/05/21,TRINITY METHODIST CHURCH.,300.00,May-21
EREWASH BOROUGH COUNCIL,226898,Balance Sheet,COVID 19 - Additional Restrictions Grant,20/05/21,TRUSS'S TAXI,500.00,May-21
EREWASH BOROUGH COUNCIL,227290,Balance Sheet,COVID 19 - Additional Restrictions Grant,25/05/21,TRUST JAMES DRIVING TUITION,"2,500.00",May-21
EREWASH BOROUGH COUNCIL,226994,Balance Sheet,COVID 19 - Additional Restrictions Grant,20/05/21,TUCK ME UNDER LTD,"1,500.00",May-21
EREWASH BOROUGH COUNCIL,225944,Green Space,Materials/Consumables,09/04/21,TUDOR ENVIRONMENTAL,"1,608.69",May-21
EREWASH BOROUGH COUNCIL,226484,Green Space,Materials/Consumables,29/04/21,TUDOR ENVIRONMENTAL,237.03,May-21
EREWASH BOROUGH COUNCIL,227137,Green Space,Materials/Consumables,18/05/21,TUDOR ENVIRONMENTAL,"1,195.10",May-21
EREWASH BOROUGH COUNCIL,226058,Green Space,Materials/Consumables,13/04/21,TUDOR ENVIRONMENTAL,219.00,May-21
EREWASH BOROUGH COUNCIL,226578,Homelessness,Homelessness-Lease Properties,12/05/21,TUNTUM HOUSING ASSOCIATION.,"1,238.25",May-21
EREWASH BOROUGH COUNCIL,227220,Balance Sheet,COVID 19 - Additional Restrictions Grant,25/05/21,UK BIKE FIT,"8,000.00",May-21
EREWASH BOROUGH COUNCIL,226869,Balance Sheet,COVID 19 - Additional Restrictions Grant,20/05/21,REDACTED PERSONAL DATA,500.00,May-21
EREWASH BOROUGH COUNCIL,226992,Balance Sheet,COVID 19 - Additional Restrictions Grant,20/05/21,UNIQUE FURNITURE LTD,"1,500.00",May-21
EREWASH BOROUGH COUNCIL,227107,Payments,Commission,24/05/21,UNISON,-6.79,May-21
EREWASH BOROUGH COUNCIL,227107,Balance Sheet,Payroll Collection A/c - Trade Union Subscriptions,24/05/21,UNISON,452.75,May-21
EREWASH BOROUGH COUNCIL,226971,Balance Sheet,COVID 19 - Additional Restrictions Grant,20/05/21,UPTOWN PROMOTIONS LTD,"8,000.00",May-21
EREWASH BOROUGH COUNCIL,227369,Christmas Lights,Reactive Maintenance,26/04/21,URBIS SCHREDER LTD,"1,477.00",May-21
EREWASH BOROUGH COUNCIL,227369,Green Space,Reactive Maintenance,26/04/21,URBIS SCHREDER LTD,"2,195.00",May-21
EREWASH BOROUGH COUNCIL,226978,Balance Sheet,COVID 19 - Additional Restrictions Grant,20/05/21,USA CHICKEN EXPRESS,"2,667.00",May-21
EREWASH BOROUGH COUNCIL,226395,Parks Pavilions,Reactive Maintenance,29/04/21,V G STOKES & SONS.,"1,376.00",May-21
EREWASH BOROUGH COUNCIL,226829,Balance Sheet,COVID 19 - Additional Restrictions Grant,20/05/21,V M HAIRDRESSING,"1,000.00",May-21
EREWASH BOROUGH COUNCIL,227258,Balance Sheet,COVID 19 - Additional Restrictions Grant,25/05/21,VEE DUBZ CONERSTIONS LTD,"2,500.00",May-21
EREWASH BOROUGH COUNCIL,226944,Balance Sheet,COVID 19 - Additional Restrictions Grant,20/05/21,VEGETABLE OIL MANAGEMENT LTD,"18,000.00",May-21
EREWASH BOROUGH COUNCIL,227037,Household/Residual Waste Collection,Repairs and Maintenance,18/05/21,VEHICLE WEIGHING SOLUTIONS,537.31,May-21
EREWASH BOROUGH COUNCIL,225950,Accountancy,Computer Software,09/04/21,VERSION 1 SOLUTIONS LIMITED,"1,545.00",May-21
EREWASH BOROUGH COUNCIL,226786,Balance Sheet,COVID 19 - Additional Restrictions Grant,20/05/21,VICKI HEAVENS MOBILE HAIRDRESSING,"1,000.00",May-21
EREWASH BOROUGH COUNCIL,227246,Balance Sheet,COVID 19 - Additional Restrictions Grant,25/05/21,VICKYS SWIMSCHOOL,"8,000.00",May-21
EREWASH BOROUGH COUNCIL,226018,Community Services,Printing and Stationery,07/04/21,VIKING DIRECT,265.21,May-21
EREWASH BOROUGH COUNCIL,227331,Balance Sheet,COVID 19 - Additional Restrictions Grant,25/05/21,VITESSE CLEANING SOLUTIONS,"2,500.00",May-21
EREWASH BOROUGH COUNCIL,226734,ICT Support Services,Mobile Phones,01/04/21,VODAFONE,"1,355.74",May-21
EREWASH BOROUGH COUNCIL,227274,Balance Sheet,COVID 19 - Additional Restrictions Grant,25/05/21,WAY AHEAD,"2,500.00",May-21
EREWASH BOROUGH COUNCIL,226851,Balance Sheet,COVID 19 - Additional Restrictions Grant,20/05/21,REDACTED PERSONAL DATA,500.00,May-21
EREWASH BOROUGH COUNCIL,226984,Balance Sheet,COVID 19 - Additional Restrictions Grant,20/05/21,WEST END DENTAL LABORATORY LTD,"2,500.00",May-21
EREWASH BOROUGH COUNCIL,226718,Balance Sheet,PCC - Election,18/05/21,WEST HALLAM METHODIST CHURCH,385.00,May-21
EREWASH BOROUGH COUNCIL,227330,Balance Sheet,COVID 19 - Additional Restrictions Grant,25/05/21,WHILE I BREATHE,"2,500.00",May-21
EREWASH BOROUGH COUNCIL,227063,Council Tax Collection,Fees Costs and Expenses,10/05/21,WILKIN CHAPMAN LLP,458.00,May-21
EREWASH BOROUGH COUNCIL,226560,Council Tax Collection,Fees Costs and Expenses,10/05/21,WILKIN CHAPMAN LLP,350.00,May-21
EREWASH BOROUGH COUNCIL,226799,Balance Sheet,COVID 19 - Additional Restrictions Grant,20/05/21,WILLS BARBERSHOP,"1,000.00",May-21
EREWASH BOROUGH COUNCIL,226719,Balance Sheet,PCC - Election,18/05/21,WILSTHORPE TAVERN,500.00,May-21
EREWASH BOROUGH COUNCIL,227237,Balance Sheet,COVID 19 - Additional Restrictions Grant,25/05/21,WINDMILL BUILDERS.,"8,000.00",May-21
EREWASH BOROUGH COUNCIL,227094,Household/Residual Waste Collection,Agency Staff,17/04/21,WORKCHAIN LTD,"1,615.27",May-21
EREWASH BOROUGH COUNCIL,227093,Kerbside Dry Recycling Collection,Agency Staff,24/04/21,WORKCHAIN LTD,"1,076.85",May-21
EREWASH BOROUGH COUNCIL,226255,Household/Residual Waste Collection,Agency Staff,10/04/21,WORKCHAIN LTD,"1,942.69",May-21
EREWASH BOROUGH COUNCIL,227093,Household/Residual Waste Collection,Agency Staff,24/04/21,WORKCHAIN LTD,"1,615.27",May-21
EREWASH BOROUGH COUNCIL,227092,Kerbside Dry Recycling Collection,Agency Staff,01/05/21,WORKCHAIN LTD,"1,076.85",May-21
EREWASH BOROUGH COUNCIL,227092,Household/Residual Waste Collection,Agency Staff,01/05/21,WORKCHAIN LTD,"1,615.27",May-21
EREWASH BOROUGH COUNCIL,226255,Kerbside Dry Recycling Collection,Agency Staff,10/04/21,WORKCHAIN LTD,"1,295.13",May-21
EREWASH BOROUGH COUNCIL,227094,Kerbside Dry Recycling Collection,Agency Staff,17/04/21,WORKCHAIN LTD,"1,076.85",May-21
EREWASH BOROUGH COUNCIL,226771,Balance Sheet,ICT Software Licence Payment in Advance,17/03/21,XMA LIMITED,"4,370.59",May-21
EREWASH BOROUGH COUNCIL,226942,Balance Sheet,COVID 19 - Additional Restrictions Grant,20/05/21,YORKES HOSIERY,500.00,May-21
EREWASH BOROUGH COUNCIL,226873,Balance Sheet,COVID 19 - Additional Restrictions Grant,20/05/21,REDACTED PERSONAL DATA,500.00,May-21
EREWASH BOROUGH COUNCIL,226236,ICT Support Services,Data Lines,26/04/21,ZEN INTERNET LIMITED,"1,367.01",May-21
EREWASH BOROUGH COUNCIL,226974,Balance Sheet,COVID 19 - Additional Restrictions Grant,20/05/21,REDACTED PERSONAL DATA,"2,667.00",May-21
EREWASH BOROUGH COUNCIL,227355,Balance Sheet,COVID 19 - Additional Restrictions Grant,25/05/21,ZOO HAIR DESIGN,"1,000.00",May-21
EREWASH BOROUGH COUNCIL,226870,Balance Sheet,COVID 19 - Additional Restrictions Grant,20/05/21,REDACTED PERSONAL DATA,500.00,May-21
